{"text_format":"1","workbook":"xlsx","n_sheets":5,"sheets":["Dataset","VBA Macros","Power Query","Merge1","Formula"],"not_rendered":{"charts":0,"images":0,"macros":1,"external_links":0,"defined_names":1,"comments":0,"pivot_tables":0},"unopened":[],"bounds":{"document_bytes":16777216,"sheet_cells":100000,"rows_first":2000,"rows_last":500,"rows_between":2000,"halvings":0,"cell_chars":16384,"cell_head_chars":4096},"cells_cut":0,"cells_raw":0,"read":"whole","date_system":"1900"}

{"sheet":"Dataset","index":0,"n_rows":7,"n_cols":7,"rows_kept":7,"cut":false,"hidden":false,"merged":[[1,1,1,6]]}
[]
[null,"Sample Dataset"]
[]
[null,"Column 1","Column 2","Column 3","Column 4","Column 5","Column 6"]
[null,1,2,3,4,5,6]
[null,2,3,4,5,6,7]
[null,3,4,5,6,7,8]

{"sheet":"VBA Macros","index":1,"n_rows":5836,"n_cols":18,"rows_kept":5836,"cut":false,"hidden":false,"merged":[[1,1,1,7],[1,11,1,17]]}
[]
[null,"Combinations of 6 Columns Using VBA Macros",null,null,null,null,null,null,null,null,null,"Practice Section"]
[]
[null,"Column 1","Column 2","Column 3","Column 4","Column 5","Column 6","Combinations",null,null,null,"Column 1","Column 2","Column 3","Column 4","Column 5","Column 6","Combinations"]
[null,1,2,3,4,5,6,"1-2-3-4-5-6",null,null,null,1,2,3,4,5,6]
[null,2,3,4,5,6,7,"1-2-3-4-5-7",null,null,null,2,3,4,5,6,7]
[null,3,4,5,6,7,8,"1-2-3-4-5-8",null,null,null,3,4,5,6,7,8]
[null,null,null,null,null,null,null,"1-2-3-4-6-6"]
[null,null,null,null,null,null,null,"1-2-3-4-6-7"]
[null,null,null,null,null,null,null,"1-2-3-4-6-8"]
[null,null,null,null,null,null,null,"1-2-3-4-7-6"]
[null,null,null,null,null,null,null,"1-2-3-4-7-7"]
[null,null,null,null,null,null,null,"1-2-3-4-7-8"]
[null,null,null,null,null,null,null,"1-2-3-5-5-6"]
[null,null,null,null,null,null,null,"1-2-3-5-5-7"]
[null,null,null,null,null,null,null,"1-2-3-5-5-8"]
[null,null,null,null,null,null,null,"1-2-3-5-6-6"]
[null,null,null,null,null,null,null,"1-2-3-5-6-7"]
[null,null,null,null,null,null,null,"1-2-3-5-6-8"]
[null,null,null,null,null,null,null,"1-2-3-5-7-6"]
[null,null,null,null,null,null,null,"1-2-3-5-7-7"]
[null,null,null,null,null,null,null,"1-2-3-5-7-8"]
[null,null,null,null,null,null,null,"1-2-3-6-5-6"]
[null,null,null,null,null,null,null,"1-2-3-6-5-7"]
[null,null,null,null,null,null,null,"1-2-3-6-5-8"]
[null,null,null,null,null,null,null,"1-2-3-6-6-6"]
[null,null,null,null,null,null,null,"1-2-3-6-6-7"]
[null,null,null,null,null,null,null,"1-2-3-6-6-8"]
[null,null,null,null,null,null,null,"1-2-3-6-7-6"]
[null,null,null,null,null,null,null,"1-2-3-6-7-7"]
[null,null,null,null,null,null,null,"1-2-3-6-7-8"]
[null,null,null,null,null,null,null,"1-2-4-4-5-6"]
[null,null,null,null,null,null,null,"1-2-4-4-5-7"]
[null,null,null,null,null,null,null,"1-2-4-4-5-8"]
[null,null,null,null,null,null,null,"1-2-4-4-6-6"]
[null,null,null,null,null,null,null,"1-2-4-4-6-7"]
[null,null,null,null,null,null,null,"1-2-4-4-6-8"]
[null,null,null,null,null,null,null,"1-2-4-4-7-6"]
[null,null,null,null,null,null,null,"1-2-4-4-7-7"]
[null,null,null,null,null,null,null,"1-2-4-4-7-8"]
[null,null,null,null,null,null,null,"1-2-4-5-5-6"]
[null,null,null,null,null,null,null,"1-2-4-5-5-7"]
[null,null,null,null,null,null,null,"1-2-4-5-5-8"]
[null,null,null,null,null,null,null,"1-2-4-5-6-6"]
[null,null,null,null,null,null,null,"1-2-4-5-6-7"]
[null,null,null,null,null,null,null,"1-2-4-5-6-8"]
[null,null,null,null,null,null,null,"1-2-4-5-7-6"]
[null,null,null,null,null,null,null,"1-2-4-5-7-7"]
[null,null,null,null,null,null,null,"1-2-4-5-7-8"]
[null,null,null,null,null,null,null,"1-2-4-6-5-6"]
[null,null,null,null,null,null,null,"1-2-4-6-5-7"]
[null,null,null,null,null,null,null,"1-2-4-6-5-8"]
[null,null,null,null,null,null,null,"1-2-4-6-6-6"]
[null,null,null,null,null,null,null,"1-2-4-6-6-7"]
[null,null,null,null,null,null,null,"1-2-4-6-6-8"]
[null,null,null,null,null,null,null,"1-2-4-6-7-6"]
[null,null,null,null,null,null,null,"1-2-4-6-7-7"]
[null,null,null,null,null,null,null,"1-2-4-6-7-8"]
[null,null,null,null,null,null,null,"1-2-5-4-5-6"]
[null,null,null,null,null,null,null,"1-2-5-4-5-7"]
[null,null,null,null,null,null,null,"1-2-5-4-5-8"]
[null,null,null,null,null,null,null,"1-2-5-4-6-6"]
[null,null,null,null,null,null,null,"1-2-5-4-6-7"]
[null,null,null,null,null,null,null,"1-2-5-4-6-8"]
[null,null,null,null,null,null,null,"1-2-5-4-7-6"]
[null,null,null,null,null,null,null,"1-2-5-4-7-7"]
[null,null,null,null,null,null,null,"1-2-5-4-7-8"]
[null,null,null,null,null,null,null,"1-2-5-5-5-6"]
[null,null,null,null,null,null,null,"1-2-5-5-5-7"]
[null,null,null,null,null,null,null,"1-2-5-5-5-8"]
[null,null,null,null,null,null,null,"1-2-5-5-6-6"]
[null,null,null,null,null,null,null,"1-2-5-5-6-7"]
[null,null,null,null,null,null,null,"1-2-5-5-6-8"]
[null,null,null,null,null,null,null,"1-2-5-5-7-6"]
[null,null,null,null,null,null,null,"1-2-5-5-7-7"]
[null,null,null,null,null,null,null,"1-2-5-5-7-8"]
[null,null,null,null,null,null,null,"1-2-5-6-5-6"]
[null,null,null,null,null,null,null,"1-2-5-6-5-7"]
[null,null,null,null,null,null,null,"1-2-5-6-5-8"]
[null,null,null,null,null,null,null,"1-2-5-6-6-6"]
[null,null,null,null,null,null,null,"1-2-5-6-6-7"]
[null,null,null,null,null,null,null,"1-2-5-6-6-8"]
[null,null,null,null,null,null,null,"1-2-5-6-7-6"]
[null,null,null,null,null,null,null,"1-2-5-6-7-7"]
[null,null,null,null,null,null,null,"1-2-5-6-7-8"]
[null,null,null,null,null,null,null,"1-3-3-4-5-6"]
[null,null,null,null,null,null,null,"1-3-3-4-5-7"]
[null,null,null,null,null,null,null,"1-3-3-4-5-8"]
[null,null,null,null,null,null,null,"1-3-3-4-6-6"]
[null,null,null,null,null,null,null,"1-3-3-4-6-7"]
[null,null,null,null,null,null,null,"1-3-3-4-6-8"]
[null,null,null,null,null,null,null,"1-3-3-4-7-6"]
[null,null,null,null,null,null,null,"1-3-3-4-7-7"]
[null,null,null,null,null,null,null,"1-3-3-4-7-8"]
[null,null,null,null,null,null,null,"1-3-3-5-5-6"]
[null,null,null,null,null,null,null,"1-3-3-5-5-7"]
[null,null,null,null,null,null,null,"1-3-3-5-5-8"]
[null,null,null,null,null,null,null,"1-3-3-5-6-6"]
[null,null,null,null,null,null,null,"1-3-3-5-6-7"]
[null,null,null,null,null,null,null,"1-3-3-5-6-8"]
[null,null,null,null,null,null,null,"1-3-3-5-7-6"]
[null,null,null,null,null,null,null,"1-3-3-5-7-7"]
[null,null,null,null,null,null,null,"1-3-3-5-7-8"]
[null,null,null,null,null,null,null,"1-3-3-6-5-6"]
[null,null,null,null,null,null,null,"1-3-3-6-5-7"]
[null,null,null,null,null,null,null,"1-3-3-6-5-8"]
[null,null,null,null,null,null,null,"1-3-3-6-6-6"]
[null,null,null,null,null,null,null,"1-3-3-6-6-7"]
[null,null,null,null,null,null,null,"1-3-3-6-6-8"]
[null,null,null,null,null,null,null,"1-3-3-6-7-6"]
[null,null,null,null,null,null,null,"1-3-3-6-7-7"]
[null,null,null,null,null,null,null,"1-3-3-6-7-8"]
[null,null,null,null,null,null,null,"1-3-4-4-5-6"]
[null,null,null,null,null,null,null,"1-3-4-4-5-7"]
[null,null,null,null,null,null,null,"1-3-4-4-5-8"]
[null,null,null,null,null,null,null,"1-3-4-4-6-6"]
[null,null,null,null,null,null,null,"1-3-4-4-6-7"]
[null,null,null,null,null,null,null,"1-3-4-4-6-8"]
[null,null,null,null,null,null,null,"1-3-4-4-7-6"]
[null,null,null,null,null,null,null,"1-3-4-4-7-7"]
[null,null,null,null,null,null,null,"1-3-4-4-7-8"]
[null,null,null,null,null,null,null,"1-3-4-5-5-6"]
[null,null,null,null,null,null,null,"1-3-4-5-5-7"]
[null,null,null,null,null,null,null,"1-3-4-5-5-8"]
[null,null,null,null,null,null,null,"1-3-4-5-6-6"]
[null,null,null,null,null,null,null,"1-3-4-5-6-7"]
[null,null,null,null,null,null,null,"1-3-4-5-6-8"]
[null,null,null,null,null,null,null,"1-3-4-5-7-6"]
[null,null,null,null,null,null,null,"1-3-4-5-7-7"]
[null,null,null,null,null,null,null,"1-3-4-5-7-8"]
[null,null,null,null,null,null,null,"1-3-4-6-5-6"]
[null,null,null,null,null,null,null,"1-3-4-6-5-7"]
[null,null,null,null,null,null,null,"1-3-4-6-5-8"]
[null,null,null,null,null,null,null,"1-3-4-6-6-6"]
[null,null,null,null,null,null,null,"1-3-4-6-6-7"]
[null,null,null,null,null,null,null,"1-3-4-6-6-8"]
[null,null,null,null,null,null,null,"1-3-4-6-7-6"]
[null,null,null,null,null,null,null,"1-3-4-6-7-7"]
[null,null,null,null,null,null,null,"1-3-4-6-7-8"]
[null,null,null,null,null,null,null,"1-3-5-4-5-6"]
[null,null,null,null,null,null,null,"1-3-5-4-5-7"]
[null,null,null,null,null,null,null,"1-3-5-4-5-8"]
[null,null,null,null,null,null,null,"1-3-5-4-6-6"]
[null,null,null,null,null,null,null,"1-3-5-4-6-7"]
[null,null,null,null,null,null,null,"1-3-5-4-6-8"]
[null,null,null,null,null,null,null,"1-3-5-4-7-6"]
[null,null,null,null,null,null,null,"1-3-5-4-7-7"]
[null,null,null,null,null,null,null,"1-3-5-4-7-8"]
[null,null,null,null,null,null,null,"1-3-5-5-5-6"]
[null,null,null,null,null,null,null,"1-3-5-5-5-7"]
[null,null,null,null,null,null,null,"1-3-5-5-5-8"]
[null,null,null,null,null,null,null,"1-3-5-5-6-6"]
[null,null,null,null,null,null,null,"1-3-5-5-6-7"]
[null,null,null,null,null,null,null,"1-3-5-5-6-8"]
[null,null,null,null,null,null,null,"1-3-5-5-7-6"]
[null,null,null,null,null,null,null,"1-3-5-5-7-7"]
[null,null,null,null,null,null,null,"1-3-5-5-7-8"]
[null,null,null,null,null,null,null,"1-3-5-6-5-6"]
[null,null,null,null,null,null,null,"1-3-5-6-5-7"]
[null,null,null,null,null,null,null,"1-3-5-6-5-8"]
[null,null,null,null,null,null,null,"1-3-5-6-6-6"]
[null,null,null,null,null,null,null,"1-3-5-6-6-7"]
[null,null,null,null,null,null,null,"1-3-5-6-6-8"]
[null,null,null,null,null,null,null,"1-3-5-6-7-6"]
[null,null,null,null,null,null,null,"1-3-5-6-7-7"]
[null,null,null,null,null,null,null,"1-3-5-6-7-8"]
[null,null,null,null,null,null,null,"1-4-3-4-5-6"]
[null,null,null,null,null,null,null,"1-4-3-4-5-7"]
[null,null,null,null,null,null,null,"1-4-3-4-5-8"]
[null,null,null,null,null,null,null,"1-4-3-4-6-6"]
[null,null,null,null,null,null,null,"1-4-3-4-6-7"]
[null,null,null,null,null,null,null,"1-4-3-4-6-8"]
[null,null,null,null,null,null,null,"1-4-3-4-7-6"]
[null,null,null,null,null,null,null,"1-4-3-4-7-7"]
[null,null,null,null,null,null,null,"1-4-3-4-7-8"]
[null,null,null,null,null,null,null,"1-4-3-5-5-6"]
[null,null,null,null,null,null,null,"1-4-3-5-5-7"]
[null,null,null,null,null,null,null,"1-4-3-5-5-8"]
[null,null,null,null,null,null,null,"1-4-3-5-6-6"]
[null,null,null,null,null,null,null,"1-4-3-5-6-7"]
[null,null,null,null,null,null,null,"1-4-3-5-6-8"]
[null,null,null,null,null,null,null,"1-4-3-5-7-6"]
[null,null,null,null,null,null,null,"1-4-3-5-7-7"]
[null,null,null,null,null,null,null,"1-4-3-5-7-8"]
[null,null,null,null,null,null,null,"1-4-3-6-5-6"]
[null,null,null,null,null,null,null,"1-4-3-6-5-7"]
[null,null,null,null,null,null,null,"1-4-3-6-5-8"]
[null,null,null,null,null,null,null,"1-4-3-6-6-6"]
[null,null,null,null,null,null,null,"1-4-3-6-6-7"]
[null,null,null,null,null,null,null,"1-4-3-6-6-8"]
[null,null,null,null,null,null,null,"1-4-3-6-7-6"]
[null,null,null,null,null,null,null,"1-4-3-6-7-7"]
[null,null,null,null,null,null,null,"1-4-3-6-7-8"]
[null,null,null,null,null,null,null,"1-4-4-4-5-6"]
[null,null,null,null,null,null,null,"1-4-4-4-5-7"]
[null,null,null,null,null,null,null,"1-4-4-4-5-8"]
[null,null,null,null,null,null,null,"1-4-4-4-6-6"]
[null,null,null,null,null,null,null,"1-4-4-4-6-7"]
[null,null,null,null,null,null,null,"1-4-4-4-6-8"]
[null,null,null,null,null,null,null,"1-4-4-4-7-6"]
[null,null,null,null,null,null,null,"1-4-4-4-7-7"]
[null,null,null,null,null,null,null,"1-4-4-4-7-8"]
[null,null,null,null,null,null,null,"1-4-4-5-5-6"]
[null,null,null,null,null,null,null,"1-4-4-5-5-7"]
[null,null,null,null,null,null,null,"1-4-4-5-5-8"]
[null,null,null,null,null,null,null,"1-4-4-5-6-6"]
[null,null,null,null,null,null,null,"1-4-4-5-6-7"]
[null,null,null,null,null,null,null,"1-4-4-5-6-8"]
[null,null,null,null,null,null,null,"1-4-4-5-7-6"]
[null,null,null,null,null,null,null,"1-4-4-5-7-7"]
[null,null,null,null,null,null,null,"1-4-4-5-7-8"]
[null,null,null,null,null,null,null,"1-4-4-6-5-6"]
[null,null,null,null,null,null,null,"1-4-4-6-5-7"]
[null,null,null,null,null,null,null,"1-4-4-6-5-8"]
[null,null,null,null,null,null,null,"1-4-4-6-6-6"]
[null,null,null,null,null,null,null,"1-4-4-6-6-7"]
[null,null,null,null,null,null,null,"1-4-4-6-6-8"]
[null,null,null,null,null,null,null,"1-4-4-6-7-6"]
[null,null,null,null,null,null,null,"1-4-4-6-7-7"]
[null,null,null,null,null,null,null,"1-4-4-6-7-8"]
[null,null,null,null,null,null,null,"1-4-5-4-5-6"]
[null,null,null,null,null,null,null,"1-4-5-4-5-7"]
[null,null,null,null,null,null,null,"1-4-5-4-5-8"]
[null,null,null,null,null,null,null,"1-4-5-4-6-6"]
[null,null,null,null,null,null,null,"1-4-5-4-6-7"]
[null,null,null,null,null,null,null,"1-4-5-4-6-8"]
[null,null,null,null,null,null,null,"1-4-5-4-7-6"]
[null,null,null,null,null,null,null,"1-4-5-4-7-7"]
[null,null,null,null,null,null,null,"1-4-5-4-7-8"]
[null,null,null,null,null,null,null,"1-4-5-5-5-6"]
[null,null,null,null,null,null,null,"1-4-5-5-5-7"]
[null,null,null,null,null,null,null,"1-4-5-5-5-8"]
[null,null,null,null,null,null,null,"1-4-5-5-6-6"]
[null,null,null,null,null,null,null,"1-4-5-5-6-7"]
[null,null,null,null,null,null,null,"1-4-5-5-6-8"]
[null,null,null,null,null,null,null,"1-4-5-5-7-6"]
[null,null,null,null,null,null,null,"1-4-5-5-7-7"]
[null,null,null,null,null,null,null,"1-4-5-5-7-8"]
[null,null,null,null,null,null,null,"1-4-5-6-5-6"]
[null,null,null,null,null,null,null,"1-4-5-6-5-7"]
[null,null,null,null,null,null,null,"1-4-5-6-5-8"]
[null,null,null,null,null,null,null,"1-4-5-6-6-6"]
[null,null,null,null,null,null,null,"1-4-5-6-6-7"]
[null,null,null,null,null,null,null,"1-4-5-6-6-8"]
[null,null,null,null,null,null,null,"1-4-5-6-7-6"]
[null,null,null,null,null,null,null,"1-4-5-6-7-7"]
[null,null,null,null,null,null,null,"1-4-5-6-7-8"]
[null,null,null,null,null,null,null,"2-2-3-4-5-6"]
[null,null,null,null,null,null,null,"2-2-3-4-5-7"]
[null,null,null,null,null,null,null,"2-2-3-4-5-8"]
[null,null,null,null,null,null,null,"2-2-3-4-6-6"]
[null,null,null,null,null,null,null,"2-2-3-4-6-7"]
[null,null,null,null,null,null,null,"2-2-3-4-6-8"]
[null,null,null,null,null,null,null,"2-2-3-4-7-6"]
[null,null,null,null,null,null,null,"2-2-3-4-7-7"]
[null,null,null,null,null,null,null,"2-2-3-4-7-8"]
[null,null,null,null,null,null,null,"2-2-3-5-5-6"]
[null,null,null,null,null,null,null,"2-2-3-5-5-7"]
[null,null,null,null,null,null,null,"2-2-3-5-5-8"]
[null,null,null,null,null,null,null,"2-2-3-5-6-6"]
[null,null,null,null,null,null,null,"2-2-3-5-6-7"]
[null,null,null,null,null,null,null,"2-2-3-5-6-8"]
[null,null,null,null,null,null,null,"2-2-3-5-7-6"]
[null,null,null,null,null,null,null,"2-2-3-5-7-7"]
[null,null,null,null,null,null,null,"2-2-3-5-7-8"]
[null,null,null,null,null,null,null,"2-2-3-6-5-6"]
[null,null,null,null,null,null,null,"2-2-3-6-5-7"]
[null,null,null,null,null,null,null,"2-2-3-6-5-8"]
[null,null,null,null,null,null,null,"2-2-3-6-6-6"]
[null,null,null,null,null,null,null,"2-2-3-6-6-7"]
[null,null,null,null,null,null,null,"2-2-3-6-6-8"]
[null,null,null,null,null,null,null,"2-2-3-6-7-6"]
[null,null,null,null,null,null,null,"2-2-3-6-7-7"]
[null,null,null,null,null,null,null,"2-2-3-6-7-8"]
[null,null,null,null,null,null,null,"2-2-4-4-5-6"]
[null,null,null,null,null,null,null,"2-2-4-4-5-7"]
[null,null,null,null,null,null,null,"2-2-4-4-5-8"]
[null,null,null,null,null,null,null,"2-2-4-4-6-6"]
[null,null,null,null,null,null,null,"2-2-4-4-6-7"]
[null,null,null,null,null,null,null,"2-2-4-4-6-8"]
[null,null,null,null,null,null,null,"2-2-4-4-7-6"]
[null,null,null,null,null,null,null,"2-2-4-4-7-7"]
[null,null,null,null,null,null,null,"2-2-4-4-7-8"]
[null,null,null,null,null,null,null,"2-2-4-5-5-6"]
[null,null,null,null,null,null,null,"2-2-4-5-5-7"]
[null,null,null,null,null,null,null,"2-2-4-5-5-8"]
[null,null,null,null,null,null,null,"2-2-4-5-6-6"]
[null,null,null,null,null,null,null,"2-2-4-5-6-7"]
[null,null,null,null,null,null,null,"2-2-4-5-6-8"]
[null,null,null,null,null,null,null,"2-2-4-5-7-6"]
[null,null,null,null,null,null,null,"2-2-4-5-7-7"]
[null,null,null,null,null,null,null,"2-2-4-5-7-8"]
[null,null,null,null,null,null,null,"2-2-4-6-5-6"]
[null,null,null,null,null,null,null,"2-2-4-6-5-7"]
[null,null,null,null,null,null,null,"2-2-4-6-5-8"]
[null,null,null,null,null,null,null,"2-2-4-6-6-6"]
[null,null,null,null,null,null,null,"2-2-4-6-6-7"]
[null,null,null,null,null,null,null,"2-2-4-6-6-8"]
[null,null,null,null,null,null,null,"2-2-4-6-7-6"]
[null,null,null,null,null,null,null,"2-2-4-6-7-7"]
[null,null,null,null,null,null,null,"2-2-4-6-7-8"]
[null,null,null,null,null,null,null,"2-2-5-4-5-6"]
[null,null,null,null,null,null,null,"2-2-5-4-5-7"]
[null,null,null,null,null,null,null,"2-2-5-4-5-8"]
[null,null,null,null,null,null,null,"2-2-5-4-6-6"]
[null,null,null,null,null,null,null,"2-2-5-4-6-7"]
[null,null,null,null,null,null,null,"2-2-5-4-6-8"]
[null,null,null,null,null,null,null,"2-2-5-4-7-6"]
[null,null,null,null,null,null,null,"2-2-5-4-7-7"]
[null,null,null,null,null,null,null,"2-2-5-4-7-8"]
[null,null,null,null,null,null,null,"2-2-5-5-5-6"]
[null,null,null,null,null,null,null,"2-2-5-5-5-7"]
[null,null,null,null,null,null,null,"2-2-5-5-5-8"]
[null,null,null,null,null,null,null,"2-2-5-5-6-6"]
[null,null,null,null,null,null,null,"2-2-5-5-6-7"]
[null,null,null,null,null,null,null,"2-2-5-5-6-8"]
[null,null,null,null,null,null,null,"2-2-5-5-7-6"]
[null,null,null,null,null,null,null,"2-2-5-5-7-7"]
[null,null,null,null,null,null,null,"2-2-5-5-7-8"]
[null,null,null,null,null,null,null,"2-2-5-6-5-6"]
[null,null,null,null,null,null,null,"2-2-5-6-5-7"]
[null,null,null,null,null,null,null,"2-2-5-6-5-8"]
[null,null,null,null,null,null,null,"2-2-5-6-6-6"]
[null,null,null,null,null,null,null,"2-2-5-6-6-7"]
[null,null,null,null,null,null,null,"2-2-5-6-6-8"]
[null,null,null,null,null,null,null,"2-2-5-6-7-6"]
[null,null,null,null,null,null,null,"2-2-5-6-7-7"]
[null,null,null,null,null,null,null,"2-2-5-6-7-8"]
[null,null,null,null,null,null,null,"2-3-3-4-5-6"]
[null,null,null,null,null,null,null,"2-3-3-4-5-7"]
[null,null,null,null,null,null,null,"2-3-3-4-5-8"]
[null,null,null,null,null,null,null,"2-3-3-4-6-6"]
[null,null,null,null,null,null,null,"2-3-3-4-6-7"]
[null,null,null,null,null,null,null,"2-3-3-4-6-8"]
[null,null,null,null,null,null,null,"2-3-3-4-7-6"]
[null,null,null,null,null,null,null,"2-3-3-4-7-7"]
[null,null,null,null,null,null,null,"2-3-3-4-7-8"]
[null,null,null,null,null,null,null,"2-3-3-5-5-6"]
[null,null,null,null,null,null,null,"2-3-3-5-5-7"]
[null,null,null,null,null,null,null,"2-3-3-5-5-8"]
[null,null,null,null,null,null,null,"2-3-3-5-6-6"]
[null,null,null,null,null,null,null,"2-3-3-5-6-7"]
[null,null,null,null,null,null,null,"2-3-3-5-6-8"]
[null,null,null,null,null,null,null,"2-3-3-5-7-6"]
[null,null,null,null,null,null,null,"2-3-3-5-7-7"]
[null,null,null,null,null,null,null,"2-3-3-5-7-8"]
[null,null,null,null,null,null,null,"2-3-3-6-5-6"]
[null,null,null,null,null,null,null,"2-3-3-6-5-7"]
[null,null,null,null,null,null,null,"2-3-3-6-5-8"]
[null,null,null,null,null,null,null,"2-3-3-6-6-6"]
[null,null,null,null,null,null,null,"2-3-3-6-6-7"]
[null,null,null,null,null,null,null,"2-3-3-6-6-8"]
[null,null,null,null,null,null,null,"2-3-3-6-7-6"]
[null,null,null,null,null,null,null,"2-3-3-6-7-7"]
[null,null,null,null,null,null,null,"2-3-3-6-7-8"]
[null,null,null,null,null,null,null,"2-3-4-4-5-6"]
[null,null,null,null,null,null,null,"2-3-4-4-5-7"]
[null,null,null,null,null,null,null,"2-3-4-4-5-8"]
[null,null,null,null,null,null,null,"2-3-4-4-6-6"]
[null,null,null,null,null,null,null,"2-3-4-4-6-7"]
[null,null,null,null,null,null,null,"2-3-4-4-6-8"]
[null,null,null,null,null,null,null,"2-3-4-4-7-6"]
[null,null,null,null,null,null,null,"2-3-4-4-7-7"]
[null,null,null,null,null,null,null,"2-3-4-4-7-8"]
[null,null,null,null,null,null,null,"2-3-4-5-5-6"]
[null,null,null,null,null,null,null,"2-3-4-5-5-7"]
[null,null,null,null,null,null,null,"2-3-4-5-5-8"]
[null,null,null,null,null,null,null,"2-3-4-5-6-6"]
[null,null,null,null,null,null,null,"2-3-4-5-6-7"]
[null,null,null,null,null,null,null,"2-3-4-5-6-8"]
[null,null,null,null,null,null,null,"2-3-4-5-7-6"]
[null,null,null,null,null,null,null,"2-3-4-5-7-7"]
[null,null,null,null,null,null,null,"2-3-4-5-7-8"]
[null,null,null,null,null,null,null,"2-3-4-6-5-6"]
[null,null,null,null,null,null,null,"2-3-4-6-5-7"]
[null,null,null,null,null,null,null,"2-3-4-6-5-8"]
[null,null,null,null,null,null,null,"2-3-4-6-6-6"]
[null,null,null,null,null,null,null,"2-3-4-6-6-7"]
[null,null,null,null,null,null,null,"2-3-4-6-6-8"]
[null,null,null,null,null,null,null,"2-3-4-6-7-6"]
[null,null,null,null,null,null,null,"2-3-4-6-7-7"]
[null,null,null,null,null,null,null,"2-3-4-6-7-8"]
[null,null,null,null,null,null,null,"2-3-5-4-5-6"]
[null,null,null,null,null,null,null,"2-3-5-4-5-7"]
[null,null,null,null,null,null,null,"2-3-5-4-5-8"]
[null,null,null,null,null,null,null,"2-3-5-4-6-6"]
[null,null,null,null,null,null,null,"2-3-5-4-6-7"]
[null,null,null,null,null,null,null,"2-3-5-4-6-8"]
[null,null,null,null,null,null,null,"2-3-5-4-7-6"]
[null,null,null,null,null,null,null,"2-3-5-4-7-7"]
[null,null,null,null,null,null,null,"2-3-5-4-7-8"]
[null,null,null,null,null,null,null,"2-3-5-5-5-6"]
[null,null,null,null,null,null,null,"2-3-5-5-5-7"]
[null,null,null,null,null,null,null,"2-3-5-5-5-8"]
[null,null,null,null,null,null,null,"2-3-5-5-6-6"]
[null,null,null,null,null,null,null,"2-3-5-5-6-7"]
[null,null,null,null,null,null,null,"2-3-5-5-6-8"]
[null,null,null,null,null,null,null,"2-3-5-5-7-6"]
[null,null,null,null,null,null,null,"2-3-5-5-7-7"]
[null,null,null,null,null,null,null,"2-3-5-5-7-8"]
[null,null,null,null,null,null,null,"2-3-5-6-5-6"]
[null,null,null,null,null,null,null,"2-3-5-6-5-7"]
[null,null,null,null,null,null,null,"2-3-5-6-5-8"]
[null,null,null,null,null,null,null,"2-3-5-6-6-6"]
[null,null,null,null,null,null,null,"2-3-5-6-6-7"]
[null,null,null,null,null,null,null,"2-3-5-6-6-8"]
[null,null,null,null,null,null,null,"2-3-5-6-7-6"]
[null,null,null,null,null,null,null,"2-3-5-6-7-7"]
[null,null,null,null,null,null,null,"2-3-5-6-7-8"]
[null,null,null,null,null,null,null,"2-4-3-4-5-6"]
[null,null,null,null,null,null,null,"2-4-3-4-5-7"]
[null,null,null,null,null,null,null,"2-4-3-4-5-8"]
[null,null,null,null,null,null,null,"2-4-3-4-6-6"]
[null,null,null,null,null,null,null,"2-4-3-4-6-7"]
[null,null,null,null,null,null,null,"2-4-3-4-6-8"]
[null,null,null,null,null,null,null,"2-4-3-4-7-6"]
[null,null,null,null,null,null,null,"2-4-3-4-7-7"]
[null,null,null,null,null,null,null,"2-4-3-4-7-8"]
[null,null,null,null,null,null,null,"2-4-3-5-5-6"]
[null,null,null,null,null,null,null,"2-4-3-5-5-7"]
[null,null,null,null,null,null,null,"2-4-3-5-5-8"]
[null,null,null,null,null,null,null,"2-4-3-5-6-6"]
[null,null,null,null,null,null,null,"2-4-3-5-6-7"]
[null,null,null,null,null,null,null,"2-4-3-5-6-8"]
[null,null,null,null,null,null,null,"2-4-3-5-7-6"]
[null,null,null,null,null,null,null,"2-4-3-5-7-7"]
[null,null,null,null,null,null,null,"2-4-3-5-7-8"]
[null,null,null,null,null,null,null,"2-4-3-6-5-6"]
[null,null,null,null,null,null,null,"2-4-3-6-5-7"]
[null,null,null,null,null,null,null,"2-4-3-6-5-8"]
[null,null,null,null,null,null,null,"2-4-3-6-6-6"]
[null,null,null,null,null,null,null,"2-4-3-6-6-7"]
[null,null,null,null,null,null,null,"2-4-3-6-6-8"]
[null,null,null,null,null,null,null,"2-4-3-6-7-6"]
[null,null,null,null,null,null,null,"2-4-3-6-7-7"]
[null,null,null,null,null,null,null,"2-4-3-6-7-8"]
[null,null,null,null,null,null,null,"2-4-4-4-5-6"]
[null,null,null,null,null,null,null,"2-4-4-4-5-7"]
[null,null,null,null,null,null,null,"2-4-4-4-5-8"]
[null,null,null,null,null,null,null,"2-4-4-4-6-6"]
[null,null,null,null,null,null,null,"2-4-4-4-6-7"]
[null,null,null,null,null,null,null,"2-4-4-4-6-8"]
[null,null,null,null,null,null,null,"2-4-4-4-7-6"]
[null,null,null,null,null,null,null,"2-4-4-4-7-7"]
[null,null,null,null,null,null,null,"2-4-4-4-7-8"]
[null,null,null,null,null,null,null,"2-4-4-5-5-6"]
[null,null,null,null,null,null,null,"2-4-4-5-5-7"]
[null,null,null,null,null,null,null,"2-4-4-5-5-8"]
[null,null,null,null,null,null,null,"2-4-4-5-6-6"]
[null,null,null,null,null,null,null,"2-4-4-5-6-7"]
[null,null,null,null,null,null,null,"2-4-4-5-6-8"]
[null,null,null,null,null,null,null,"2-4-4-5-7-6"]
[null,null,null,null,null,null,null,"2-4-4-5-7-7"]
[null,null,null,null,null,null,null,"2-4-4-5-7-8"]
[null,null,null,null,null,null,null,"2-4-4-6-5-6"]
[null,null,null,null,null,null,null,"2-4-4-6-5-7"]
[null,null,null,null,null,null,null,"2-4-4-6-5-8"]
[null,null,null,null,null,null,null,"2-4-4-6-6-6"]
[null,null,null,null,null,null,null,"2-4-4-6-6-7"]
[null,null,null,null,null,null,null,"2-4-4-6-6-8"]
[null,null,null,null,null,null,null,"2-4-4-6-7-6"]
[null,null,null,null,null,null,null,"2-4-4-6-7-7"]
[null,null,null,null,null,null,null,"2-4-4-6-7-8"]
[null,null,null,null,null,null,null,"2-4-5-4-5-6"]
[null,null,null,null,null,null,null,"2-4-5-4-5-7"]
[null,null,null,null,null,null,null,"2-4-5-4-5-8"]
[null,null,null,null,null,null,null,"2-4-5-4-6-6"]
[null,null,null,null,null,null,null,"2-4-5-4-6-7"]
[null,null,null,null,null,null,null,"2-4-5-4-6-8"]
[null,null,null,null,null,null,null,"2-4-5-4-7-6"]
[null,null,null,null,null,null,null,"2-4-5-4-7-7"]
[null,null,null,null,null,null,null,"2-4-5-4-7-8"]
[null,null,null,null,null,null,null,"2-4-5-5-5-6"]
[null,null,null,null,null,null,null,"2-4-5-5-5-7"]
[null,null,null,null,null,null,null,"2-4-5-5-5-8"]
[null,null,null,null,null,null,null,"2-4-5-5-6-6"]
[null,null,null,null,null,null,null,"2-4-5-5-6-7"]
[null,null,null,null,null,null,null,"2-4-5-5-6-8"]
[null,null,null,null,null,null,null,"2-4-5-5-7-6"]
[null,null,null,null,null,null,null,"2-4-5-5-7-7"]
[null,null,null,null,null,null,null,"2-4-5-5-7-8"]
[null,null,null,null,null,null,null,"2-4-5-6-5-6"]
[null,null,null,null,null,null,null,"2-4-5-6-5-7"]
[null,null,null,null,null,null,null,"2-4-5-6-5-8"]
[null,null,null,null,null,null,null,"2-4-5-6-6-6"]
[null,null,null,null,null,null,null,"2-4-5-6-6-7"]
[null,null,null,null,null,null,null,"2-4-5-6-6-8"]
[null,null,null,null,null,null,null,"2-4-5-6-7-6"]
[null,null,null,null,null,null,null,"2-4-5-6-7-7"]
[null,null,null,null,null,null,null,"2-4-5-6-7-8"]
[null,null,null,null,null,null,null,"3-2-3-4-5-6"]
[null,null,null,null,null,null,null,"3-2-3-4-5-7"]
[null,null,null,null,null,null,null,"3-2-3-4-5-8"]
[null,null,null,null,null,null,null,"3-2-3-4-6-6"]
[null,null,null,null,null,null,null,"3-2-3-4-6-7"]
[null,null,null,null,null,null,null,"3-2-3-4-6-8"]
[null,null,null,null,null,null,null,"3-2-3-4-7-6"]
[null,null,null,null,null,null,null,"3-2-3-4-7-7"]
[null,null,null,null,null,null,null,"3-2-3-4-7-8"]
[null,null,null,null,null,null,null,"3-2-3-5-5-6"]
[null,null,null,null,null,null,null,"3-2-3-5-5-7"]
[null,null,null,null,null,null,null,"3-2-3-5-5-8"]
[null,null,null,null,null,null,null,"3-2-3-5-6-6"]
[null,null,null,null,null,null,null,"3-2-3-5-6-7"]
[null,null,null,null,null,null,null,"3-2-3-5-6-8"]
[null,null,null,null,null,null,null,"3-2-3-5-7-6"]
[null,null,null,null,null,null,null,"3-2-3-5-7-7"]
[null,null,null,null,null,null,null,"3-2-3-5-7-8"]
[null,null,null,null,null,null,null,"3-2-3-6-5-6"]
[null,null,null,null,null,null,null,"3-2-3-6-5-7"]
[null,null,null,null,null,null,null,"3-2-3-6-5-8"]
[null,null,null,null,null,null,null,"3-2-3-6-6-6"]
[null,null,null,null,null,null,null,"3-2-3-6-6-7"]
[null,null,null,null,null,null,null,"3-2-3-6-6-8"]
[null,null,null,null,null,null,null,"3-2-3-6-7-6"]
[null,null,null,null,null,null,null,"3-2-3-6-7-7"]
[null,null,null,null,null,null,null,"3-2-3-6-7-8"]
[null,null,null,null,null,null,null,"3-2-4-4-5-6"]
[null,null,null,null,null,null,null,"3-2-4-4-5-7"]
[null,null,null,null,null,null,null,"3-2-4-4-5-8"]
[null,null,null,null,null,null,null,"3-2-4-4-6-6"]
[null,null,null,null,null,null,null,"3-2-4-4-6-7"]
[null,null,null,null,null,null,null,"3-2-4-4-6-8"]
[null,null,null,null,null,null,null,"3-2-4-4-7-6"]
[null,null,null,null,null,null,null,"3-2-4-4-7-7"]
[null,null,null,null,null,null,null,"3-2-4-4-7-8"]
[null,null,null,null,null,null,null,"3-2-4-5-5-6"]
[null,null,null,null,null,null,null,"3-2-4-5-5-7"]
[null,null,null,null,null,null,null,"3-2-4-5-5-8"]
[null,null,null,null,null,null,null,"3-2-4-5-6-6"]
[null,null,null,null,null,null,null,"3-2-4-5-6-7"]
[null,null,null,null,null,null,null,"3-2-4-5-6-8"]
[null,null,null,null,null,null,null,"3-2-4-5-7-6"]
[null,null,null,null,null,null,null,"3-2-4-5-7-7"]
[null,null,null,null,null,null,null,"3-2-4-5-7-8"]
[null,null,null,null,null,null,null,"3-2-4-6-5-6"]
[null,null,null,null,null,null,null,"3-2-4-6-5-7"]
[null,null,null,null,null,null,null,"3-2-4-6-5-8"]
[null,null,null,null,null,null,null,"3-2-4-6-6-6"]
[null,null,null,null,null,null,null,"3-2-4-6-6-7"]
[null,null,null,null,null,null,null,"3-2-4-6-6-8"]
[null,null,null,null,null,null,null,"3-2-4-6-7-6"]
[null,null,null,null,null,null,null,"3-2-4-6-7-7"]
[null,null,null,null,null,null,null,"3-2-4-6-7-8"]
[null,null,null,null,null,null,null,"3-2-5-4-5-6"]
[null,null,null,null,null,null,null,"3-2-5-4-5-7"]
[null,null,null,null,null,null,null,"3-2-5-4-5-8"]
[null,null,null,null,null,null,null,"3-2-5-4-6-6"]
[null,null,null,null,null,null,null,"3-2-5-4-6-7"]
[null,null,null,null,null,null,null,"3-2-5-4-6-8"]
[null,null,null,null,null,null,null,"3-2-5-4-7-6"]
[null,null,null,null,null,null,null,"3-2-5-4-7-7"]
[null,null,null,null,null,null,null,"3-2-5-4-7-8"]
[null,null,null,null,null,null,null,"3-2-5-5-5-6"]
[null,null,null,null,null,null,null,"3-2-5-5-5-7"]
[null,null,null,null,null,null,null,"3-2-5-5-5-8"]
[null,null,null,null,null,null,null,"3-2-5-5-6-6"]
[null,null,null,null,null,null,null,"3-2-5-5-6-7"]
[null,null,null,null,null,null,null,"3-2-5-5-6-8"]
[null,null,null,null,null,null,null,"3-2-5-5-7-6"]
[null,null,null,null,null,null,null,"3-2-5-5-7-7"]
[null,null,null,null,null,null,null,"3-2-5-5-7-8"]
[null,null,null,null,null,null,null,"3-2-5-6-5-6"]
[null,null,null,null,null,null,null,"3-2-5-6-5-7"]
[null,null,null,null,null,null,null,"3-2-5-6-5-8"]
[null,null,null,null,null,null,null,"3-2-5-6-6-6"]
[null,null,null,null,null,null,null,"3-2-5-6-6-7"]
[null,null,null,null,null,null,null,"3-2-5-6-6-8"]
[null,null,null,null,null,null,null,"3-2-5-6-7-6"]
[null,null,null,null,null,null,null,"3-2-5-6-7-7"]
[null,null,null,null,null,null,null,"3-2-5-6-7-8"]
[null,null,null,null,null,null,null,"3-3-3-4-5-6"]
[null,null,null,null,null,null,null,"3-3-3-4-5-7"]
[null,null,null,null,null,null,null,"3-3-3-4-5-8"]
[null,null,null,null,null,null,null,"3-3-3-4-6-6"]
[null,null,null,null,null,null,null,"3-3-3-4-6-7"]
[null,null,null,null,null,null,null,"3-3-3-4-6-8"]
[null,null,null,null,null,null,null,"3-3-3-4-7-6"]
[null,null,null,null,null,null,null,"3-3-3-4-7-7"]
[null,null,null,null,null,null,null,"3-3-3-4-7-8"]
[null,null,null,null,null,null,null,"3-3-3-5-5-6"]
[null,null,null,null,null,null,null,"3-3-3-5-5-7"]
[null,null,null,null,null,null,null,"3-3-3-5-5-8"]
[null,null,null,null,null,null,null,"3-3-3-5-6-6"]
[null,null,null,null,null,null,null,"3-3-3-5-6-7"]
[null,null,null,null,null,null,null,"3-3-3-5-6-8"]
[null,null,null,null,null,null,null,"3-3-3-5-7-6"]
[null,null,null,null,null,null,null,"3-3-3-5-7-7"]
[null,null,null,null,null,null,null,"3-3-3-5-7-8"]
[null,null,null,null,null,null,null,"3-3-3-6-5-6"]
[null,null,null,null,null,null,null,"3-3-3-6-5-7"]
[null,null,null,null,null,null,null,"3-3-3-6-5-8"]
[null,null,null,null,null,null,null,"3-3-3-6-6-6"]
[null,null,null,null,null,null,null,"3-3-3-6-6-7"]
[null,null,null,null,null,null,null,"3-3-3-6-6-8"]
[null,null,null,null,null,null,null,"3-3-3-6-7-6"]
[null,null,null,null,null,null,null,"3-3-3-6-7-7"]
[null,null,null,null,null,null,null,"3-3-3-6-7-8"]
[null,null,null,null,null,null,null,"3-3-4-4-5-6"]
[null,null,null,null,null,null,null,"3-3-4-4-5-7"]
[null,null,null,null,null,null,null,"3-3-4-4-5-8"]
[null,null,null,null,null,null,null,"3-3-4-4-6-6"]
[null,null,null,null,null,null,null,"3-3-4-4-6-7"]
[null,null,null,null,null,null,null,"3-3-4-4-6-8"]
[null,null,null,null,null,null,null,"3-3-4-4-7-6"]
[null,null,null,null,null,null,null,"3-3-4-4-7-7"]
[null,null,null,null,null,null,null,"3-3-4-4-7-8"]
[null,null,null,null,null,null,null,"3-3-4-5-5-6"]
[null,null,null,null,null,null,null,"3-3-4-5-5-7"]
[null,null,null,null,null,null,null,"3-3-4-5-5-8"]
[null,null,null,null,null,null,null,"3-3-4-5-6-6"]
[null,null,null,null,null,null,null,"3-3-4-5-6-7"]
[null,null,null,null,null,null,null,"3-3-4-5-6-8"]
[null,null,null,null,null,null,null,"3-3-4-5-7-6"]
[null,null,null,null,null,null,null,"3-3-4-5-7-7"]
[null,null,null,null,null,null,null,"3-3-4-5-7-8"]
[null,null,null,null,null,null,null,"3-3-4-6-5-6"]
[null,null,null,null,null,null,null,"3-3-4-6-5-7"]
[null,null,null,null,null,null,null,"3-3-4-6-5-8"]
[null,null,null,null,null,null,null,"3-3-4-6-6-6"]
[null,null,null,null,null,null,null,"3-3-4-6-6-7"]
[null,null,null,null,null,null,null,"3-3-4-6-6-8"]
[null,null,null,null,null,null,null,"3-3-4-6-7-6"]
[null,null,null,null,null,null,null,"3-3-4-6-7-7"]
[null,null,null,null,null,null,null,"3-3-4-6-7-8"]
[null,null,null,null,null,null,null,"3-3-5-4-5-6"]
[null,null,null,null,null,null,null,"3-3-5-4-5-7"]
[null,null,null,null,null,null,null,"3-3-5-4-5-8"]
[null,null,null,null,null,null,null,"3-3-5-4-6-6"]
[null,null,null,null,null,null,null,"3-3-5-4-6-7"]
[null,null,null,null,null,null,null,"3-3-5-4-6-8"]
[null,null,null,null,null,null,null,"3-3-5-4-7-6"]
[null,null,null,null,null,null,null,"3-3-5-4-7-7"]
[null,null,null,null,null,null,null,"3-3-5-4-7-8"]
[null,null,null,null,null,null,null,"3-3-5-5-5-6"]
[null,null,null,null,null,null,null,"3-3-5-5-5-7"]
[null,null,null,null,null,null,null,"3-3-5-5-5-8"]
[null,null,null,null,null,null,null,"3-3-5-5-6-6"]
[null,null,null,null,null,null,null,"3-3-5-5-6-7"]
[null,null,null,null,null,null,null,"3-3-5-5-6-8"]
[null,null,null,null,null,null,null,"3-3-5-5-7-6"]
[null,null,null,null,null,null,null,"3-3-5-5-7-7"]
[null,null,null,null,null,null,null,"3-3-5-5-7-8"]
[null,null,null,null,null,null,null,"3-3-5-6-5-6"]
[null,null,null,null,null,null,null,"3-3-5-6-5-7"]
[null,null,null,null,null,null,null,"3-3-5-6-5-8"]
[null,null,null,null,null,null,null,"3-3-5-6-6-6"]
[null,null,null,null,null,null,null,"3-3-5-6-6-7"]
[null,null,null,null,null,null,null,"3-3-5-6-6-8"]
[null,null,null,null,null,null,null,"3-3-5-6-7-6"]
[null,null,null,null,null,null,null,"3-3-5-6-7-7"]
[null,null,null,null,null,null,null,"3-3-5-6-7-8"]
[null,null,null,null,null,null,null,"3-4-3-4-5-6"]
[null,null,null,null,null,null,null,"3-4-3-4-5-7"]
[null,null,null,null,null,null,null,"3-4-3-4-5-8"]
[null,null,null,null,null,null,null,"3-4-3-4-6-6"]
[null,null,null,null,null,null,null,"3-4-3-4-6-7"]
[null,null,null,null,null,null,null,"3-4-3-4-6-8"]
[null,null,null,null,null,null,null,"3-4-3-4-7-6"]
[null,null,null,null,null,null,null,"3-4-3-4-7-7"]
[null,null,null,null,null,null,null,"3-4-3-4-7-8"]
[null,null,null,null,null,null,null,"3-4-3-5-5-6"]
[null,null,null,null,null,null,null,"3-4-3-5-5-7"]
[null,null,null,null,null,null,null,"3-4-3-5-5-8"]
[null,null,null,null,null,null,null,"3-4-3-5-6-6"]
[null,null,null,null,null,null,null,"3-4-3-5-6-7"]
[null,null,null,null,null,null,null,"3-4-3-5-6-8"]
[null,null,null,null,null,null,null,"3-4-3-5-7-6"]
[null,null,null,null,null,null,null,"3-4-3-5-7-7"]
[null,null,null,null,null,null,null,"3-4-3-5-7-8"]
[null,null,null,null,null,null,null,"3-4-3-6-5-6"]
[null,null,null,null,null,null,null,"3-4-3-6-5-7"]
[null,null,null,null,null,null,null,"3-4-3-6-5-8"]
[null,null,null,null,null,null,null,"3-4-3-6-6-6"]
[null,null,null,null,null,null,null,"3-4-3-6-6-7"]
[null,null,null,null,null,null,null,"3-4-3-6-6-8"]
[null,null,null,null,null,null,null,"3-4-3-6-7-6"]
[null,null,null,null,null,null,null,"3-4-3-6-7-7"]
[null,null,null,null,null,null,null,"3-4-3-6-7-8"]
[null,null,null,null,null,null,null,"3-4-4-4-5-6"]
[null,null,null,null,null,null,null,"3-4-4-4-5-7"]
[null,null,null,null,null,null,null,"3-4-4-4-5-8"]
[null,null,null,null,null,null,null,"3-4-4-4-6-6"]
[null,null,null,null,null,null,null,"3-4-4-4-6-7"]
[null,null,null,null,null,null,null,"3-4-4-4-6-8"]
[null,null,null,null,null,null,null,"3-4-4-4-7-6"]
[null,null,null,null,null,null,null,"3-4-4-4-7-7"]
[null,null,null,null,null,null,null,"3-4-4-4-7-8"]
[null,null,null,null,null,null,null,"3-4-4-5-5-6"]
[null,null,null,null,null,null,null,"3-4-4-5-5-7"]
[null,null,null,null,null,null,null,"3-4-4-5-5-8"]
[null,null,null,null,null,null,null,"3-4-4-5-6-6"]
[null,null,null,null,null,null,null,"3-4-4-5-6-7"]
[null,null,null,null,null,null,null,"3-4-4-5-6-8"]
[null,null,null,null,null,null,null,"3-4-4-5-7-6"]
[null,null,null,null,null,null,null,"3-4-4-5-7-7"]
[null,null,null,null,null,null,null,"3-4-4-5-7-8"]
[null,null,null,null,null,null,null,"3-4-4-6-5-6"]
[null,null,null,null,null,null,null,"3-4-4-6-5-7"]
[null,null,null,null,null,null,null,"3-4-4-6-5-8"]
[null,null,null,null,null,null,null,"3-4-4-6-6-6"]
[null,null,null,null,null,null,null,"3-4-4-6-6-7"]
[null,null,null,null,null,null,null,"3-4-4-6-6-8"]
[null,null,null,null,null,null,null,"3-4-4-6-7-6"]
[null,null,null,null,null,null,null,"3-4-4-6-7-7"]
[null,null,null,null,null,null,null,"3-4-4-6-7-8"]
[null,null,null,null,null,null,null,"3-4-5-4-5-6"]
[null,null,null,null,null,null,null,"3-4-5-4-5-7"]
[null,null,null,null,null,null,null,"3-4-5-4-5-8"]
[null,null,null,null,null,null,null,"3-4-5-4-6-6"]
[null,null,null,null,null,null,null,"3-4-5-4-6-7"]
[null,null,null,null,null,null,null,"3-4-5-4-6-8"]
[null,null,null,null,null,null,null,"3-4-5-4-7-6"]
[null,null,null,null,null,null,null,"3-4-5-4-7-7"]
[null,null,null,null,null,null,null,"3-4-5-4-7-8"]
[null,null,null,null,null,null,null,"3-4-5-5-5-6"]
[null,null,null,null,null,null,null,"3-4-5-5-5-7"]
[null,null,null,null,null,null,null,"3-4-5-5-5-8"]
[null,null,null,null,null,null,null,"3-4-5-5-6-6"]
[null,null,null,null,null,null,null,"3-4-5-5-6-7"]
[null,null,null,null,null,null,null,"3-4-5-5-6-8"]
[null,null,null,null,null,null,null,"3-4-5-5-7-6"]
[null,null,null,null,null,null,null,"3-4-5-5-7-7"]
[null,null,null,null,null,null,null,"3-4-5-5-7-8"]
[null,null,null,null,null,null,null,"3-4-5-6-5-6"]
[null,null,null,null,null,null,null,"3-4-5-6-5-7"]
[null,null,null,null,null,null,null,"3-4-5-6-5-8"]
[null,null,null,null,null,null,null,"3-4-5-6-6-6"]
[null,null,null,null,null,null,null,"3-4-5-6-6-7"]
[null,null,null,null,null,null,null,"3-4-5-6-6-8"]
[null,null,null,null,null,null,null,"3-4-5-6-7-6"]
[null,null,null,null,null,null,null,"3-4-5-6-7-7"]
[null,null,null,null,null,null,null,"3-4-5-6-7-8"]
[]
[]
[null,null,null,null,null,null,null,"1 4 3 6 5 8"]
[]
[]
[]
[null,null,null,null,null,null,null,"1 4 3 6 6 6"]
[]
[]
[]
[null,null,null,null,null,null,null,"1 4 3 6 6 7"]
[]
[]
[]
[null,null,null,null,null,null,null,"1 4 3 6 6 8"]
[]
[]
[]
[null,null,null,null,null,null,null,"1 4 3 6 7 6"]
[]
[]
[]
[null,null,null,null,null,null,null,"1 4 3 6 7 7"]
[]
[]
[]
[null,null,null,null,null,null,null,"1 4 3 6 7 8"]
[]
[]
[]
[null,null,null,null,null,null,null,"1 4 4 4 5 6"]
[]
[]
[]
[null,null,null,null,null,null,null,"1 4 4 4 5 7"]
[]
[]
[]
[null,null,null,null,null,null,null,"1 4 4 4 5 8"]
[]
[]
[]
[null,null,null,null,null,null,null,"1 4 4 4 6 6"]
[]
[]
[]
[null,null,null,null,null,null,null,"1 4 4 4 6 7"]
[]
[]
[]
[null,null,null,null,null,null,null,"1 4 4 4 6 8"]
[]
[]
[]
[null,null,null,null,null,null,null,"1 4 4 4 7 6"]
[]
[]
[]
[null,null,null,null,null,null,null,"1 4 4 4 7 7"]
[]
[]
[]
[null,null,null,null,null,null,null,"1 4 4 4 7 8"]
[]
[]
[]
[null,null,null,null,null,null,null,"1 4 4 5 5 6"]
[]
[]
[]
[null,null,null,null,null,null,null,"1 4 4 5 5 7"]
[]
[]
[]
[null,null,null,null,null,null,null,"1 4 4 5 5 8"]
[]
[]
[]
[null,null,null,null,null,null,null,"1 4 4 5 6 6"]
[]
[]
[]
[null,null,null,null,null,null,null,"1 4 4 5 6 7"]
[]
[]
[]
[null,null,null,null,null,null,null,"1 4 4 5 6 8"]
[]
[]
[]
[null,null,null,null,null,null,null,"1 4 4 5 7 6"]
[]
[]
[]
[null,null,null,null,null,null,null,"1 4 4 5 7 7"]
[]
[]
[]
[null,null,null,null,null,null,null,"1 4 4 5 7 8"]
[]
[]
[]
[null,null,null,null,null,null,null,"1 4 4 6 5 6"]
[]
[]
[]
[null,null,null,null,null,null,null,"1 4 4 6 5 7"]
[]
[]
[]
[null,null,null,null,null,null,null,"1 4 4 6 5 8"]
[]
[]
[]
[null,null,null,null,null,null,null,"1 4 4 6 6 6"]
[]
[]
[]
[null,null,null,null,null,null,null,"1 4 4 6 6 7"]
[]
[]
[]
[null,null,null,null,null,null,null,"1 4 4 6 6 8"]
[]
[]
[]
[null,null,null,null,null,null,null,"1 4 4 6 7 6"]
[]
[]
[]
[null,null,null,null,null,null,null,"1 4 4 6 7 7"]
[]
[]
[]
[null,null,null,null,null,null,null,"1 4 4 6 7 8"]
[]
[]
[]
[null,null,null,null,null,null,null,"1 4 5 4 5 6"]
[]
[]
[]
[null,null,null,null,null,null,null,"1 4 5 4 5 7"]
[]
[]
[]
[null,null,null,null,null,null,null,"1 4 5 4 5 8"]
[]
[]
[]
[null,null,null,null,null,null,null,"1 4 5 4 6 6"]
[]
[]
[]
[null,null,null,null,null,null,null,"1 4 5 4 6 7"]
[]
[]
[]
[null,null,null,null,null,null,null,"1 4 5 4 6 8"]
[]
[]
[]
[null,null,null,null,null,null,null,"1 4 5 4 7 6"]
[]
[]
[]
[null,null,null,null,null,null,null,"1 4 5 4 7 7"]
[]
[]
[]
[null,null,null,null,null,null,null,"1 4 5 4 7 8"]
[]
[]
[]
[null,null,null,null,null,null,null,"1 4 5 5 5 6"]
[]
[]
[]
[null,null,null,null,null,null,null,"1 4 5 5 5 7"]
[]
[]
[]
[null,null,null,null,null,null,null,"1 4 5 5 5 8"]
[]
[]
[]
[null,null,null,null,null,null,null,"1 4 5 5 6 6"]
[]
[]
[]
[null,null,null,null,null,null,null,"1 4 5 5 6 7"]
[]
[]
[]
[null,null,null,null,null,null,null,"1 4 5 5 6 8"]
[]
[]
[]
[null,null,null,null,null,null,null,"1 4 5 5 7 6"]
[]
[]
[]
[null,null,null,null,null,null,null,"1 4 5 5 7 7"]
[]
[]
[]
[null,null,null,null,null,null,null,"1 4 5 5 7 8"]
[]
[]
[]
[null,null,null,null,null,null,null,"1 4 5 6 5 6"]
[]
[]
[]
[null,null,null,null,null,null,null,"1 4 5 6 5 7"]
[]
[]
[]
[null,null,null,null,null,null,null,"1 4 5 6 5 8"]
[]
[]
[]
[null,null,null,null,null,null,null,"1 4 5 6 6 6"]
[]
[]
[]
[null,null,null,null,null,null,null,"1 4 5 6 6 7"]
[]
[]
[]
[null,null,null,null,null,null,null,"1 4 5 6 6 8"]
[]
[]
[]
[null,null,null,null,null,null,null,"1 4 5 6 7 6"]
[]
[]
[]
[null,null,null,null,null,null,null,"1 4 5 6 7 7"]
[]
[]
[]
[null,null,null,null,null,null,null,"1 4 5 6 7 8"]
[]
[]
[]
[null,null,null,null,null,null,null,"2 2 3 4 5 6"]
[]
[]
[]
[null,null,null,null,null,null,null,"2 2 3 4 5 7"]
[]
[]
[]
[null,null,null,null,null,null,null,"2 2 3 4 5 8"]
[]
[]
[]
[null,null,null,null,null,null,null,"2 2 3 4 6 6"]
[]
[]
[]
[null,null,null,null,null,null,null,"2 2 3 4 6 7"]
[]
[]
[]
[null,null,null,null,null,null,null,"2 2 3 4 6 8"]
[]
[]
[]
[null,null,null,null,null,null,null,"2 2 3 4 7 6"]
[]
[]
[]
[null,null,null,null,null,null,null,"2 2 3 4 7 7"]
[]
[]
[]
[null,null,null,null,null,null,null,"2 2 3 4 7 8"]
[]
[]
[]
[null,null,null,null,null,null,null,"2 2 3 5 5 6"]
[]
[]
[]
[null,null,null,null,null,null,null,"2 2 3 5 5 7"]
[]
[]
[]
[null,null,null,null,null,null,null,"2 2 3 5 5 8"]
[]
[]
[]
[null,null,null,null,null,null,null,"2 2 3 5 6 6"]
[]
[]
[]
[null,null,null,null,null,null,null,"2 2 3 5 6 7"]
[]
[]
[]
[null,null,null,null,null,null,null,"2 2 3 5 6 8"]
[]
[]
[]
[null,null,null,null,null,null,null,"2 2 3 5 7 6"]
[]
[]
[]
[null,null,null,null,null,null,null,"2 2 3 5 7 7"]
[]
[]
[]
[null,null,null,null,null,null,null,"2 2 3 5 7 8"]
[]
[]
[]
[null,null,null,null,null,null,null,"2 2 3 6 5 6"]
[]
[]
[]
[null,null,null,null,null,null,null,"2 2 3 6 5 7"]
[]
[]
[]
[null,null,null,null,null,null,null,"2 2 3 6 5 8"]
[]
[]
[]
[null,null,null,null,null,null,null,"2 2 3 6 6 6"]
[]
[]
[]
[null,null,null,null,null,null,null,"2 2 3 6 6 7"]
[]
[]
[]
[null,null,null,null,null,null,null,"2 2 3 6 6 8"]
[]
[]
[]
[null,null,null,null,null,null,null,"2 2 3 6 7 6"]
[]
[]
[]
[null,null,null,null,null,null,null,"2 2 3 6 7 7"]
[]
[]
[]
[null,null,null,null,null,null,null,"2 2 3 6 7 8"]
[]
[]
[]
[null,null,null,null,null,null,null,"2 2 4 4 5 6"]
[]
[]
[]
[null,null,null,null,null,null,null,"2 2 4 4 5 7"]
[]
[]
[]
[null,null,null,null,null,null,null,"2 2 4 4 5 8"]
[]
[]
[]
[null,null,null,null,null,null,null,"2 2 4 4 6 6"]
[]
[]
[]
[null,null,null,null,null,null,null,"2 2 4 4 6 7"]
[]
[]
[]
[null,null,null,null,null,null,null,"2 2 4 4 6 8"]
[]
[]
[]
[null,null,null,null,null,null,null,"2 2 4 4 7 6"]
[]
[]
[]
[null,null,null,null,null,null,null,"2 2 4 4 7 7"]
[]
[]
[]
[null,null,null,null,null,null,null,"2 2 4 4 7 8"]
[]
[]
[]
[null,null,null,null,null,null,null,"2 2 4 5 5 6"]
[]
[]
[]
[null,null,null,null,null,null,null,"2 2 4 5 5 7"]
[]
[]
[]
[null,null,null,null,null,null,null,"2 2 4 5 5 8"]
[]
[]
[]
[null,null,null,null,null,null,null,"2 2 4 5 6 6"]
[]
[]
[]
[null,null,null,null,null,null,null,"2 2 4 5 6 7"]
[]
[]
[]
[null,null,null,null,null,null,null,"2 2 4 5 6 8"]
[]
[]
[]
[null,null,null,null,null,null,null,"2 2 4 5 7 6"]
[]
[]
[]
[null,null,null,null,null,null,null,"2 2 4 5 7 7"]
[]
[]
[]
[null,null,null,null,null,null,null,"2 2 4 5 7 8"]
[]
[]
[]
[null,null,null,null,null,null,null,"2 2 4 6 5 6"]
[]
[]
[]
[null,null,null,null,null,null,null,"2 2 4 6 5 7"]
[]
[]
[]
[null,null,null,null,null,null,null,"2 2 4 6 5 8"]
[]
[]
[]
[null,null,null,null,null,null,null,"2 2 4 6 6 6"]
[]
[]
[]
[null,null,null,null,null,null,null,"2 2 4 6 6 7"]
[]
[]
[]
[null,null,null,null,null,null,null,"2 2 4 6 6 8"]
[]
[]
[]
[null,null,null,null,null,null,null,"2 2 4 6 7 6"]
[]
[]
[]
[null,null,null,null,null,null,null,"2 2 4 6 7 7"]
[]
[]
[]
[null,null,null,null,null,null,null,"2 2 4 6 7 8"]
[]
[]
[]
[null,null,null,null,null,null,null,"2 2 5 4 5 6"]
[]
[]
[]
[null,null,null,null,null,null,null,"2 2 5 4 5 7"]
[]
[]
[]
[null,null,null,null,null,null,null,"2 2 5 4 5 8"]
[]
[]
[]
[null,null,null,null,null,null,null,"2 2 5 4 6 6"]
[]
[]
[]
[null,null,null,null,null,null,null,"2 2 5 4 6 7"]
[]
[]
[]
[null,null,null,null,null,null,null,"2 2 5 4 6 8"]
[]
[]
[]
[null,null,null,null,null,null,null,"2 2 5 4 7 6"]
[]
[]
[]
[null,null,null,null,null,null,null,"2 2 5 4 7 7"]
[]
[]
[]
[null,null,null,null,null,null,null,"2 2 5 4 7 8"]
[]
[]
[]
[null,null,null,null,null,null,null,"2 2 5 5 5 6"]
[]
[]
[]
[null,null,null,null,null,null,null,"2 2 5 5 5 7"]
[]
[]
[]
[null,null,null,null,null,null,null,"2 2 5 5 5 8"]
[]
[]
[]
[null,null,null,null,null,null,null,"2 2 5 5 6 6"]
[]
[]
[]
[null,null,null,null,null,null,null,"2 2 5 5 6 7"]
[]
[]
[]
[null,null,null,null,null,null,null,"2 2 5 5 6 8"]
[]
[]
[]
[null,null,null,null,null,null,null,"2 2 5 5 7 6"]
[]
[]
[]
[null,null,null,null,null,null,null,"2 2 5 5 7 7"]
[]
[]
[]
[null,null,null,null,null,null,null,"2 2 5 5 7 8"]
[]
[]
[]
[null,null,null,null,null,null,null,"2 2 5 6 5 6"]
[]
[]
[]
[null,null,null,null,null,null,null,"2 2 5 6 5 7"]
[]
[]
[]
[null,null,null,null,null,null,null,"2 2 5 6 5 8"]
[]
[]
[]
[null,null,null,null,null,null,null,"2 2 5 6 6 6"]
[]
[]
[]
[null,null,null,null,null,null,null,"2 2 5 6 6 7"]
[]
[]
[]
[null,null,null,null,null,null,null,"2 2 5 6 6 8"]
[]
[]
[]
[null,null,null,null,null,null,null,"2 2 5 6 7 6"]
[]
[]
[]
[null,null,null,null,null,null,null,"2 2 5 6 7 7"]
[]
[]
[]
[null,null,null,null,null,null,null,"2 2 5 6 7 8"]
[]
[]
[]
[null,null,null,null,null,null,null,"2 3 3 4 5 6"]
[]
[]
[]
[null,null,null,null,null,null,null,"2 3 3 4 5 7"]
[]
[]
[]
[null,null,null,null,null,null,null,"2 3 3 4 5 8"]
[]
[]
[]
[null,null,null,null,null,null,null,"2 3 3 4 6 6"]
[]
[]
[]
[null,null,null,null,null,null,null,"2 3 3 4 6 7"]
[]
[]
[]
[null,null,null,null,null,null,null,"2 3 3 4 6 8"]
[]
[]
[]
[null,null,null,null,null,null,null,"2 3 3 4 7 6"]
[]
[]
[]
[null,null,null,null,null,null,null,"2 3 3 4 7 7"]
[]
[]
[]
[null,null,null,null,null,null,null,"2 3 3 4 7 8"]
[]
[]
[]
[null,null,null,null,null,null,null,"2 3 3 5 5 6"]
[]
[]
[]
[null,null,null,null,null,null,null,"2 3 3 5 5 7"]
[]
[]
[]
[null,null,null,null,null,null,null,"2 3 3 5 5 8"]
[]
[]
[]
[null,null,null,null,null,null,null,"2 3 3 5 6 6"]
[]
[]
[]
[null,null,null,null,null,null,null,"2 3 3 5 6 7"]
[]
[]
[]
[null,null,null,null,null,null,null,"2 3 3 5 6 8"]
[]
[]
[]
[null,null,null,null,null,null,null,"2 3 3 5 7 6"]
[]
[]
[]
[null,null,null,null,null,null,null,"2 3 3 5 7 7"]
[]
[]
[]
[null,null,null,null,null,null,null,"2 3 3 5 7 8"]
[]
[]
[]
[null,null,null,null,null,null,null,"2 3 3 6 5 6"]
[]
[]
[]
[null,null,null,null,null,null,null,"2 3 3 6 5 7"]
[]
[]
[]
[null,null,null,null,null,null,null,"2 3 3 6 5 8"]
[]
[]
[]
[null,null,null,null,null,null,null,"2 3 3 6 6 6"]
[]
[]
[]
[null,null,null,null,null,null,null,"2 3 3 6 6 7"]
[]
[]
[]
[null,null,null,null,null,null,null,"2 3 3 6 6 8"]
[]
[]
[]
[null,null,null,null,null,null,null,"2 3 3 6 7 6"]
[]
[]
[]
[null,null,null,null,null,null,null,"2 3 3 6 7 7"]
[]
[]
[]
[null,null,null,null,null,null,null,"2 3 3 6 7 8"]
[]
[]
[]
[null,null,null,null,null,null,null,"2 3 4 4 5 6"]
[]
[]
[]
[null,null,null,null,null,null,null,"2 3 4 4 5 7"]
[]
[]
[]
[null,null,null,null,null,null,null,"2 3 4 4 5 8"]
[]
[]
[]
[null,null,null,null,null,null,null,"2 3 4 4 6 6"]
[]
[]
[]
[null,null,null,null,null,null,null,"2 3 4 4 6 7"]
[]
[]
[]
[null,null,null,null,null,null,null,"2 3 4 4 6 8"]
[]
[]
[]
[null,null,null,null,null,null,null,"2 3 4 4 7 6"]
[]
[]
[]
[null,null,null,null,null,null,null,"2 3 4 4 7 7"]
[]
[]
[]
[null,null,null,null,null,null,null,"2 3 4 4 7 8"]
[]
[]
[]
[null,null,null,null,null,null,null,"2 3 4 5 5 6"]
[]
[]
[]
[null,null,null,null,null,null,null,"2 3 4 5 5 7"]
[]
[]
[]
[null,null,null,null,null,null,null,"2 3 4 5 5 8"]
[]
[]
[]
[null,null,null,null,null,null,null,"2 3 4 5 6 6"]
[]
[]
[]
[null,null,null,null,null,null,null,"2 3 4 5 6 7"]
[]
[]
[]
[null,null,null,null,null,null,null,"2 3 4 5 6 8"]
[]
[]
[]
[null,null,null,null,null,null,null,"2 3 4 5 7 6"]
[]
[]
[]
[null,null,null,null,null,null,null,"2 3 4 5 7 7"]
[]
[]
[]
[null,null,null,null,null,null,null,"2 3 4 5 7 8"]
[]
[]
[]
[null,null,null,null,null,null,null,"2 3 4 6 5 6"]
[]
[]
[]
[null,null,null,null,null,null,null,"2 3 4 6 5 7"]
[]
[]
[]
[null,null,null,null,null,null,null,"2 3 4 6 5 8"]
[]
[]
[]
[null,null,null,null,null,null,null,"2 3 4 6 6 6"]
[]
[]
[]
[null,null,null,null,null,null,null,"2 3 4 6 6 7"]
[]
[]
[]
[null,null,null,null,null,null,null,"2 3 4 6 6 8"]
[]
[]
[]
[null,null,null,null,null,null,null,"2 3 4 6 7 6"]
[]
[]
[]
[null,null,null,null,null,null,null,"2 3 4 6 7 7"]
[]
[]
[]
[null,null,null,null,null,null,null,"2 3 4 6 7 8"]
[]
[]
[]
[null,null,null,null,null,null,null,"2 3 5 4 5 6"]
[]
[]
[]
[null,null,null,null,null,null,null,"2 3 5 4 5 7"]
[]
[]
[]
[null,null,null,null,null,null,null,"2 3 5 4 5 8"]
[]
[]
[]
[null,null,null,null,null,null,null,"2 3 5 4 6 6"]
[]
[]
[]
[null,null,null,null,null,null,null,"2 3 5 4 6 7"]
[]
[]
[]
[null,null,null,null,null,null,null,"2 3 5 4 6 8"]
[]
[]
[]
[null,null,null,null,null,null,null,"2 3 5 4 7 6"]
[]
[]
[]
[null,null,null,null,null,null,null,"2 3 5 4 7 7"]
[]
[]
[]
[null,null,null,null,null,null,null,"2 3 5 4 7 8"]
[]
[]
[]
[null,null,null,null,null,null,null,"2 3 5 5 5 6"]
[]
[]
[]
[null,null,null,null,null,null,null,"2 3 5 5 5 7"]
[]
[]
[]
[null,null,null,null,null,null,null,"2 3 5 5 5 8"]
[]
[]
[]
[null,null,null,null,null,null,null,"2 3 5 5 6 6"]
[]
[]
[]
[null,null,null,null,null,null,null,"2 3 5 5 6 7"]
[]
[]
[]
[null,null,null,null,null,null,null,"2 3 5 5 6 8"]
[]
[]
[]
[null,null,null,null,null,null,null,"2 3 5 5 7 6"]
[]
[]
[]
[null,null,null,null,null,null,null,"2 3 5 5 7 7"]
[]
[]
[]
[null,null,null,null,null,null,null,"2 3 5 5 7 8"]
[]
[]
[]
[null,null,null,null,null,null,null,"2 3 5 6 5 6"]
[]
[]
[]
[null,null,null,null,null,null,null,"2 3 5 6 5 7"]
[]
[]
[]
[null,null,null,null,null,null,null,"2 3 5 6 5 8"]
[]
[]
[]
[null,null,null,null,null,null,null,"2 3 5 6 6 6"]
[]
[]
[]
[null,null,null,null,null,null,null,"2 3 5 6 6 7"]
[]
[]
[]
[null,null,null,null,null,null,null,"2 3 5 6 6 8"]
[]
[]
[]
[null,null,null,null,null,null,null,"2 3 5 6 7 6"]
[]
[]
[]
[null,null,null,null,null,null,null,"2 3 5 6 7 7"]
[]
[]
[]
[null,null,null,null,null,null,null,"2 3 5 6 7 8"]
[]
[]
[]
[null,null,null,null,null,null,null,"2 4 3 4 5 6"]
[]
[]
[]
[null,null,null,null,null,null,null,"2 4 3 4 5 7"]
[]
[]
[]
[null,null,null,null,null,null,null,"2 4 3 4 5 8"]
[]
[]
[]
[null,null,null,null,null,null,null,"2 4 3 4 6 6"]
[]
[]
[]
[null,null,null,null,null,null,null,"2 4 3 4 6 7"]
[]
[]
[]
[null,null,null,null,null,null,null,"2 4 3 4 6 8"]
[]
[]
[]
[null,null,null,null,null,null,null,"2 4 3 4 7 6"]
[]
[]
[]
[null,null,null,null,null,null,null,"2 4 3 4 7 7"]
[]
[]
[]
[null,null,null,null,null,null,null,"2 4 3 4 7 8"]
[]
[]
[]
[null,null,null,null,null,null,null,"2 4 3 5 5 6"]
[]
[]
[]
[null,null,null,null,null,null,null,"2 4 3 5 5 7"]
[]
[]
[]
[null,null,null,null,null,null,null,"2 4 3 5 5 8"]
[]
[]
[]
[null,null,null,null,null,null,null,"2 4 3 5 6 6"]
[]
[]
[]
[null,null,null,null,null,null,null,"2 4 3 5 6 7"]
[]
[]
[]
[null,null,null,null,null,null,null,"2 4 3 5 6 8"]
[]
[]
[]
[null,null,null,null,null,null,null,"2 4 3 5 7 6"]
[]
[]
[]
[null,null,null,null,null,null,null,"2 4 3 5 7 7"]
[]
[]
[]
[null,null,null,null,null,null,null,"2 4 3 5 7 8"]
[]
[]
[]
[null,null,null,null,null,null,null,"2 4 3 6 5 6"]
[]
[]
[]
[null,null,null,null,null,null,null,"2 4 3 6 5 7"]
[]
[]
[]
[null,null,null,null,null,null,null,"2 4 3 6 5 8"]
[]
[]
[]
[null,null,null,null,null,null,null,"2 4 3 6 6 6"]
[]
[]
[]
[null,null,null,null,null,null,null,"2 4 3 6 6 7"]
[]
[]
[]
[null,null,null,null,null,null,null,"2 4 3 6 6 8"]
[]
[]
[]
[null,null,null,null,null,null,null,"2 4 3 6 7 6"]
[]
[]
[]
[null,null,null,null,null,null,null,"2 4 3 6 7 7"]
[]
[]
[]
[null,null,null,null,null,null,null,"2 4 3 6 7 8"]
[]
[]
[]
[null,null,null,null,null,null,null,"2 4 4 4 5 6"]
[]
[]
[]
[null,null,null,null,null,null,null,"2 4 4 4 5 7"]
[]
[]
[]
[null,null,null,null,null,null,null,"2 4 4 4 5 8"]
[]
[]
[]
[null,null,null,null,null,null,null,"2 4 4 4 6 6"]
[]
[]
[]
[null,null,null,null,null,null,null,"2 4 4 4 6 7"]
[]
[]
[]
[null,null,null,null,null,null,null,"2 4 4 4 6 8"]
[]
[]
[]
[null,null,null,null,null,null,null,"2 4 4 4 7 6"]
[]
[]
[]
[null,null,null,null,null,null,null,"2 4 4 4 7 7"]
[]
[]
[]
[null,null,null,null,null,null,null,"2 4 4 4 7 8"]
[]
[]
[]
[null,null,null,null,null,null,null,"2 4 4 5 5 6"]
[]
[]
[]
[null,null,null,null,null,null,null,"2 4 4 5 5 7"]
[]
[]
[]
[null,null,null,null,null,null,null,"2 4 4 5 5 8"]
[]
[]
[]
[null,null,null,null,null,null,null,"2 4 4 5 6 6"]
[]
[]
[]
[null,null,null,null,null,null,null,"2 4 4 5 6 7"]
[]
[]
[]
[null,null,null,null,null,null,null,"2 4 4 5 6 8"]
[]
[]
[]
[null,null,null,null,null,null,null,"2 4 4 5 7 6"]
[]
[]
[]
[null,null,null,null,null,null,null,"2 4 4 5 7 7"]
[]
[]
[]
[null,null,null,null,null,null,null,"2 4 4 5 7 8"]
[]
[]
[]
[null,null,null,null,null,null,null,"2 4 4 6 5 6"]
[]
[]
[]
[null,null,null,null,null,null,null,"2 4 4 6 5 7"]
[]
[]
[]
[null,null,null,null,null,null,null,"2 4 4 6 5 8"]
[]
[]
[]
[null,null,null,null,null,null,null,"2 4 4 6 6 6"]
[]
[]
[]
[null,null,null,null,null,null,null,"2 4 4 6 6 7"]
[]
[]
[]
[null,null,null,null,null,null,null,"2 4 4 6 6 8"]
[]
[]
[]
[null,null,null,null,null,null,null,"2 4 4 6 7 6"]
[]
[]
[]
[null,null,null,null,null,null,null,"2 4 4 6 7 7"]
[]
[]
[]
[null,null,null,null,null,null,null,"2 4 4 6 7 8"]
[]
[]
[]
[null,null,null,null,null,null,null,"2 4 5 4 5 6"]
[]
[]
[]
[null,null,null,null,null,null,null,"2 4 5 4 5 7"]
[]
[]
[]
[null,null,null,null,null,null,null,"2 4 5 4 5 8"]
[]
[]
[]
[null,null,null,null,null,null,null,"2 4 5 4 6 6"]
[]
[]
[]
[null,null,null,null,null,null,null,"2 4 5 4 6 7"]
[]
[]
[]
[null,null,null,null,null,null,null,"2 4 5 4 6 8"]
[]
[]
[]
[null,null,null,null,null,null,null,"2 4 5 4 7 6"]
[]
[]
[]
[null,null,null,null,null,null,null,"2 4 5 4 7 7"]
[]
[]
[]
[null,null,null,null,null,null,null,"2 4 5 4 7 8"]
[]
[]
[]
[null,null,null,null,null,null,null,"2 4 5 5 5 6"]
[]
[]
[]
[null,null,null,null,null,null,null,"2 4 5 5 5 7"]
[]
[]
[]
[null,null,null,null,null,null,null,"2 4 5 5 5 8"]
[]
[]
[]
[null,null,null,null,null,null,null,"2 4 5 5 6 6"]
[]
[]
[]
[null,null,null,null,null,null,null,"2 4 5 5 6 7"]
[]
[]
[]
[null,null,null,null,null,null,null,"2 4 5 5 6 8"]
[]
[]
[]
[null,null,null,null,null,null,null,"2 4 5 5 7 6"]
[]
[]
[]
[null,null,null,null,null,null,null,"2 4 5 5 7 7"]
[]
[]
[]
[null,null,null,null,null,null,null,"2 4 5 5 7 8"]
[]
[]
[]
[null,null,null,null,null,null,null,"2 4 5 6 5 6"]
[]
[]
[]
[null,null,null,null,null,null,null,"2 4 5 6 5 7"]
[]
[]
[]
[null,null,null,null,null,null,null,"2 4 5 6 5 8"]
[]
[]
[]
[null,null,null,null,null,null,null,"2 4 5 6 6 6"]
[]
[]
[]
[null,null,null,null,null,null,null,"2 4 5 6 6 7"]
[]
[]
[]
[null,null,null,null,null,null,null,"2 4 5 6 6 8"]
[]
[]
[]
[null,null,null,null,null,null,null,"2 4 5 6 7 6"]
[]
[]
[]
[null,null,null,null,null,null,null,"2 4 5 6 7 7"]
[]
[]
[]
[null,null,null,null,null,null,null,"2 4 5 6 7 8"]
[]
[]
[]
[null,null,null,null,null,null,null,"3 2 3 4 5 6"]
[]
[]
[]
[null,null,null,null,null,null,null,"3 2 3 4 5 7"]
[]
[]
[]
[null,null,null,null,null,null,null,"3 2 3 4 5 8"]
[]
[]
[]
[null,null,null,null,null,null,null,"3 2 3 4 6 6"]
[]
[]
[]
[null,null,null,null,null,null,null,"3 2 3 4 6 7"]
[]
[]
[]
[null,null,null,null,null,null,null,"3 2 3 4 6 8"]
[]
[]
[]
[null,null,null,null,null,null,null,"3 2 3 4 7 6"]
[]
[]
[]
[null,null,null,null,null,null,null,"3 2 3 4 7 7"]
[]
[]
[]
[null,null,null,null,null,null,null,"3 2 3 4 7 8"]
[]
[]
[]
[null,null,null,null,null,null,null,"3 2 3 5 5 6"]
[]
[]
[]
[null,null,null,null,null,null,null,"3 2 3 5 5 7"]
[]
[]
[]
[null,null,null,null,null,null,null,"3 2 3 5 5 8"]
[]
[]
[]
[null,null,null,null,null,null,null,"3 2 3 5 6 6"]
[]
[]
[]
[null,null,null,null,null,null,null,"3 2 3 5 6 7"]
[]
[]
[]
[null,null,null,null,null,null,null,"3 2 3 5 6 8"]
[]
[]
[]
[null,null,null,null,null,null,null,"3 2 3 5 7 6"]
[]
[]
[]
[null,null,null,null,null,null,null,"3 2 3 5 7 7"]
[]
[]
[]
[null,null,null,null,null,null,null,"3 2 3 5 7 8"]
[]
[]
[]
[null,null,null,null,null,null,null,"3 2 3 6 5 6"]
[]
[]
[]
[null,null,null,null,null,null,null,"3 2 3 6 5 7"]
[]
[]
[]
[null,null,null,null,null,null,null,"3 2 3 6 5 8"]
[]
[]
[]
[null,null,null,null,null,null,null,"3 2 3 6 6 6"]
[]
[]
[]
[null,null,null,null,null,null,null,"3 2 3 6 6 7"]
[]
[]
[]
[null,null,null,null,null,null,null,"3 2 3 6 6 8"]
[]
[]
[]
[null,null,null,null,null,null,null,"3 2 3 6 7 6"]
[]
[]
[]
[null,null,null,null,null,null,null,"3 2 3 6 7 7"]
[]
[]
[]
[null,null,null,null,null,null,null,"3 2 3 6 7 8"]
[]
[]
[]
[null,null,null,null,null,null,null,"3 2 4 4 5 6"]
[]
[]
[]
[null,null,null,null,null,null,null,"3 2 4 4 5 7"]
[]
[]
[]
[null,null,null,null,null,null,null,"3 2 4 4 5 8"]
[]
[]
[]
[null,null,null,null,null,null,null,"3 2 4 4 6 6"]
[]
[]
[]
[null,null,null,null,null,null,null,"3 2 4 4 6 7"]
[]
[]
[]
[null,null,null,null,null,null,null,"3 2 4 4 6 8"]
[]
[]
[]
[null,null,null,null,null,null,null,"3 2 4 4 7 6"]
[]
[]
[]
[null,null,null,null,null,null,null,"3 2 4 4 7 7"]
[]
[]
[]
[null,null,null,null,null,null,null,"3 2 4 4 7 8"]
[]
[]
[]
[null,null,null,null,null,null,null,"3 2 4 5 5 6"]
[]
[]
[]
[null,null,null,null,null,null,null,"3 2 4 5 5 7"]
[]
[]
[]
[null,null,null,null,null,null,null,"3 2 4 5 5 8"]
[]
[]
[]
[null,null,null,null,null,null,null,"3 2 4 5 6 6"]
[]
[]
[]
[null,null,null,null,null,null,null,"3 2 4 5 6 7"]
[]
[]
[]
[null,null,null,null,null,null,null,"3 2 4 5 6 8"]
[]
[]
[]
[null,null,null,null,null,null,null,"3 2 4 5 7 6"]
[]
[]
[]
[null,null,null,null,null,null,null,"3 2 4 5 7 7"]
[]
[]
[]
[null,null,null,null,null,null,null,"3 2 4 5 7 8"]
[]
[]
[]
[null,null,null,null,null,null,null,"3 2 4 6 5 6"]
[]
[]
[]
[null,null,null,null,null,null,null,"3 2 4 6 5 7"]
[]
[]
[]
[null,null,null,null,null,null,null,"3 2 4 6 5 8"]
[]
[]
[]
[null,null,null,null,null,null,null,"3 2 4 6 6 6"]
[]
[]
[]
[null,null,null,null,null,null,null,"3 2 4 6 6 7"]
[]
[]
[]
[null,null,null,null,null,null,null,"3 2 4 6 6 8"]
[]
[]
[]
[null,null,null,null,null,null,null,"3 2 4 6 7 6"]
[]
[]
[]
[null,null,null,null,null,null,null,"3 2 4 6 7 7"]
[]
[]
[]
[null,null,null,null,null,null,null,"3 2 4 6 7 8"]
[]
[]
[]
[null,null,null,null,null,null,null,"3 2 5 4 5 6"]
[]
[]
[]
[null,null,null,null,null,null,null,"3 2 5 4 5 7"]
[]
[]
[]
[null,null,null,null,null,null,null,"3 2 5 4 5 8"]
[]
[]
[]
[null,null,null,null,null,null,null,"3 2 5 4 6 6"]
[]
[]
[]
[null,null,null,null,null,null,null,"3 2 5 4 6 7"]
[]
[]
[]
[null,null,null,null,null,null,null,"3 2 5 4 6 8"]
[]
[]
[]
[null,null,null,null,null,null,null,"3 2 5 4 7 6"]
[]
[]
[]
[null,null,null,null,null,null,null,"3 2 5 4 7 7"]
[]
[]
[]
[null,null,null,null,null,null,null,"3 2 5 4 7 8"]
[]
[]
[]
[null,null,null,null,null,null,null,"3 2 5 5 5 6"]
[]
[]
[]
[null,null,null,null,null,null,null,"3 2 5 5 5 7"]
[]
[]
[]
[null,null,null,null,null,null,null,"3 2 5 5 5 8"]
[]
[]
[]
[null,null,null,null,null,null,null,"3 2 5 5 6 6"]
[]
[]
[]
[null,null,null,null,null,null,null,"3 2 5 5 6 7"]
[]
[]
[]
[null,null,null,null,null,null,null,"3 2 5 5 6 8"]
[]
[]
[]
[null,null,null,null,null,null,null,"3 2 5 5 7 6"]
[]
[]
[]
[null,null,null,null,null,null,null,"3 2 5 5 7 7"]
[]
[]
[]
[null,null,null,null,null,null,null,"3 2 5 5 7 8"]
[]
[]
[]
[null,null,null,null,null,null,null,"3 2 5 6 5 6"]
[]
[]
[]
[null,null,null,null,null,null,null,"3 2 5 6 5 7"]
[]
[]
[]
[null,null,null,null,null,null,null,"3 2 5 6 5 8"]
[]
[]
[]
[null,null,null,null,null,null,null,"3 2 5 6 6 6"]
[]
[]
[]
[null,null,null,null,null,null,null,"3 2 5 6 6 7"]
[]
[]
[]
[null,null,null,null,null,null,null,"3 2 5 6 6 8"]
[]
[]
[]
[null,null,null,null,null,null,null,"3 2 5 6 7 6"]
[]
[]
[]
[null,null,null,null,null,null,null,"3 2 5 6 7 7"]
[]
[]
[]
[null,null,null,null,null,null,null,"3 2 5 6 7 8"]
[]
[]
[]
[null,null,null,null,null,null,null,"3 3 3 4 5 6"]
[]
[]
[]
[null,null,null,null,null,null,null,"3 3 3 4 5 7"]
[]
[]
[]
[null,null,null,null,null,null,null,"3 3 3 4 5 8"]
[]
[]
[]
[null,null,null,null,null,null,null,"3 3 3 4 6 6"]
[]
[]
[]
[null,null,null,null,null,null,null,"3 3 3 4 6 7"]
[]
[]
[]
[null,null,null,null,null,null,null,"3 3 3 4 6 8"]
[]
[]
[]
[null,null,null,null,null,null,null,"3 3 3 4 7 6"]
[]
[]
[]
[null,null,null,null,null,null,null,"3 3 3 4 7 7"]
[]
[]
[]
[null,null,null,null,null,null,null,"3 3 3 4 7 8"]
[]
[]
[]
[null,null,null,null,null,null,null,"3 3 3 5 5 6"]
[]
[]
[]
[null,null,null,null,null,null,null,"3 3 3 5 5 7"]
[]
[]
[]
[null,null,null,null,null,null,null,"3 3 3 5 5 8"]
[]
[]
[]
[null,null,null,null,null,null,null,"3 3 3 5 6 6"]
[]
[]
[]
[null,null,null,null,null,null,null,"3 3 3 5 6 7"]
[]
[]
[]
[null,null,null,null,null,null,null,"3 3 3 5 6 8"]
[]
[]
[]
[null,null,null,null,null,null,null,"3 3 3 5 7 6"]
[]
[]
[]
[null,null,null,null,null,null,null,"3 3 3 5 7 7"]
[]
[]
[]
[null,null,null,null,null,null,null,"3 3 3 5 7 8"]
[]
[]
[]
[null,null,null,null,null,null,null,"3 3 3 6 5 6"]
[]
[]
[]
[null,null,null,null,null,null,null,"3 3 3 6 5 7"]
[]
[]
[]
[null,null,null,null,null,null,null,"3 3 3 6 5 8"]
[]
[]
[]
[null,null,null,null,null,null,null,"3 3 3 6 6 6"]
[]
[]
[]
[null,null,null,null,null,null,null,"3 3 3 6 6 7"]
[]
[]
[]
[null,null,null,null,null,null,null,"3 3 3 6 6 8"]
[]
[]
[]
[null,null,null,null,null,null,null,"3 3 3 6 7 6"]
[]
[]
[]
[null,null,null,null,null,null,null,"3 3 3 6 7 7"]
[]
[]
[]
[null,null,null,null,null,null,null,"3 3 3 6 7 8"]
[]
[]
[]
[null,null,null,null,null,null,null,"3 3 4 4 5 6"]
[]
[]
[]
[null,null,null,null,null,null,null,"3 3 4 4 5 7"]
[]
[]
[]
[null,null,null,null,null,null,null,"3 3 4 4 5 8"]
[]
[]
[]
[null,null,null,null,null,null,null,"3 3 4 4 6 6"]
[]
[]
[]
[null,null,null,null,null,null,null,"3 3 4 4 6 7"]
[]
[]
[]
[null,null,null,null,null,null,null,"3 3 4 4 6 8"]
[]
[]
[]
[null,null,null,null,null,null,null,"3 3 4 4 7 6"]
[]
[]
[]
[null,null,null,null,null,null,null,"3 3 4 4 7 7"]
[]
[]
[]
[null,null,null,null,null,null,null,"3 3 4 4 7 8"]
[]
[]
[]
[null,null,null,null,null,null,null,"3 3 4 5 5 6"]
[]
[]
[]
[null,null,null,null,null,null,null,"3 3 4 5 5 7"]
[]
[]
[]
[null,null,null,null,null,null,null,"3 3 4 5 5 8"]
[]
[]
[]
[null,null,null,null,null,null,null,"3 3 4 5 6 6"]
[]
[]
[]
[null,null,null,null,null,null,null,"3 3 4 5 6 7"]
[]
[]
[]
[null,null,null,null,null,null,null,"3 3 4 5 6 8"]
[]
[]
[]
[null,null,null,null,null,null,null,"3 3 4 5 7 6"]
[]
[]
[]
[null,null,null,null,null,null,null,"3 3 4 5 7 7"]
[]
[]
[]
[null,null,null,null,null,null,null,"3 3 4 5 7 8"]
[]
[]
[]
[null,null,null,null,null,null,null,"3 3 4 6 5 6"]
[]
[]
[]
[null,null,null,null,null,null,null,"3 3 4 6 5 7"]
[]
[]
[]
[null,null,null,null,null,null,null,"3 3 4 6 5 8"]
[]
[]
[]
[null,null,null,null,null,null,null,"3 3 4 6 6 6"]
[]
[]
[]
[null,null,null,null,null,null,null,"3 3 4 6 6 7"]
[]
[]
[]
[null,null,null,null,null,null,null,"3 3 4 6 6 8"]
[]
[]
[]
[null,null,null,null,null,null,null,"3 3 4 6 7 6"]
[]
[]
[]
[null,null,null,null,null,null,null,"3 3 4 6 7 7"]
[]
[]
[]
[null,null,null,null,null,null,null,"3 3 4 6 7 8"]
[]
[]
[]
[null,null,null,null,null,null,null,"3 3 5 4 5 6"]
[]
[]
[]
[null,null,null,null,null,null,null,"3 3 5 4 5 7"]
[]
[]
[]
[null,null,null,null,null,null,null,"3 3 5 4 5 8"]
[]
[]
[]
[null,null,null,null,null,null,null,"3 3 5 4 6 6"]
[]
[]
[]
[null,null,null,null,null,null,null,"3 3 5 4 6 7"]
[]
[]
[]
[null,null,null,null,null,null,null,"3 3 5 4 6 8"]
[]
[]
[]
[null,null,null,null,null,null,null,"3 3 5 4 7 6"]
[]
[]
[]
[null,null,null,null,null,null,null,"3 3 5 4 7 7"]
[]
[]
[]
[null,null,null,null,null,null,null,"3 3 5 4 7 8"]
[]
[]
[]
[null,null,null,null,null,null,null,"3 3 5 5 5 6"]
[]
[]
[]
[null,null,null,null,null,null,null,"3 3 5 5 5 7"]
[]
[]
[]
[null,null,null,null,null,null,null,"3 3 5 5 5 8"]
[]
[]
[]
[null,null,null,null,null,null,null,"3 3 5 5 6 6"]
[]
[]
[]
[null,null,null,null,null,null,null,"3 3 5 5 6 7"]
[]
[]
[]
[null,null,null,null,null,null,null,"3 3 5 5 6 8"]
[]
[]
[]
[null,null,null,null,null,null,null,"3 3 5 5 7 6"]
[]
[]
[]
[null,null,null,null,null,null,null,"3 3 5 5 7 7"]
[]
[]
[]
[null,null,null,null,null,null,null,"3 3 5 5 7 8"]
[]
[]
[]
[null,null,null,null,null,null,null,"3 3 5 6 5 6"]
[]
[]
[]
[null,null,null,null,null,null,null,"3 3 5 6 5 7"]
[]
[]
[]
[null,null,null,null,null,null,null,"3 3 5 6 5 8"]
[]
[]
[]
[null,null,null,null,null,null,null,"3 3 5 6 6 6"]
[]
[]
[]
[null,null,null,null,null,null,null,"3 3 5 6 6 7"]
[]
[]
[]
[null,null,null,null,null,null,null,"3 3 5 6 6 8"]
[]
[]
[]
[null,null,null,null,null,null,null,"3 3 5 6 7 6"]
[]
[]
[]
[null,null,null,null,null,null,null,"3 3 5 6 7 7"]
[]
[]
[]
[null,null,null,null,null,null,null,"3 3 5 6 7 8"]
[]
[]
[]
[null,null,null,null,null,null,null,"3 4 3 4 5 6"]
[]
[]
[]
[null,null,null,null,null,null,null,"3 4 3 4 5 7"]
[]
[]
[]
[null,null,null,null,null,null,null,"3 4 3 4 5 8"]
[]
[]
[]
[null,null,null,null,null,null,null,"3 4 3 4 6 6"]
[]
[]
[]
[null,null,null,null,null,null,null,"3 4 3 4 6 7"]
[]
[]
[]
[null,null,null,null,null,null,null,"3 4 3 4 6 8"]
[]
[]
[]
[null,null,null,null,null,null,null,"3 4 3 4 7 6"]
[]
[]
[]
[null,null,null,null,null,null,null,"3 4 3 4 7 7"]
[]
[]
[]
[null,null,null,null,null,null,null,"3 4 3 4 7 8"]
[]
[]
[]
[null,null,null,null,null,null,null,"3 4 3 5 5 6"]
[]
[]
[]
[null,null,null,null,null,null,null,"3 4 3 5 5 7"]
[]
[]
[]
[null,null,null,null,null,null,null,"3 4 3 5 5 8"]
[]
[]
[]
[null,null,null,null,null,null,null,"3 4 3 5 6 6"]
[]
[]
[]
[null,null,null,null,null,null,null,"3 4 3 5 6 7"]
[]
[]
[]
[null,null,null,null,null,null,null,"3 4 3 5 6 8"]
[]
[]
[]
[null,null,null,null,null,null,null,"3 4 3 5 7 6"]
[]
[]
[]
[null,null,null,null,null,null,null,"3 4 3 5 7 7"]
[]
[]
[]
[null,null,null,null,null,null,null,"3 4 3 5 7 8"]
[]
[]
[]
[null,null,null,null,null,null,null,"3 4 3 6 5 6"]
[]
[]
[]
[null,null,null,null,null,null,null,"3 4 3 6 5 7"]
[]
[]
[]
[null,null,null,null,null,null,null,"3 4 3 6 5 8"]
[]
[]
[]
[null,null,null,null,null,null,null,"3 4 3 6 6 6"]
[]
[]
[]
[null,null,null,null,null,null,null,"3 4 3 6 6 7"]
[]
[]
[]
[null,null,null,null,null,null,null,"3 4 3 6 6 8"]
[]
[]
[]
[null,null,null,null,null,null,null,"3 4 3 6 7 6"]
[]
[]
[]
[null,null,null,null,null,null,null,"3 4 3 6 7 7"]
[]
[]
[]
[null,null,null,null,null,null,null,"3 4 3 6 7 8"]
[]
[]
[]
[null,null,null,null,null,null,null,"3 4 4 4 5 6"]
[]
[]
[]
[null,null,null,null,null,null,null,"3 4 4 4 5 7"]
[]
[]
[]
[null,null,null,null,null,null,null,"3 4 4 4 5 8"]
[]
[]
[]
[null,null,null,null,null,null,null,"3 4 4 4 6 6"]
[]
[]
[]
[null,null,null,null,null,null,null,"3 4 4 4 6 7"]
[]
[]
[]
[null,null,null,null,null,null,null,"3 4 4 4 6 8"]
[]
[]
[]
[null,null,null,null,null,null,null,"3 4 4 4 7 6"]
[]
[]
[]
[null,null,null,null,null,null,null,"3 4 4 4 7 7"]
[]
[]
[]
[null,null,null,null,null,null,null,"3 4 4 4 7 8"]
[]
[]
[]
[null,null,null,null,null,null,null,"3 4 4 5 5 6"]
[]
[]
[]
[null,null,null,null,null,null,null,"3 4 4 5 5 7"]
[]
[]
[]
[null,null,null,null,null,null,null,"3 4 4 5 5 8"]
[]
[]
[]
[null,null,null,null,null,null,null,"3 4 4 5 6 6"]
[]
[]
[]
[null,null,null,null,null,null,null,"3 4 4 5 6 7"]
[]
[]
[]
[null,null,null,null,null,null,null,"3 4 4 5 6 8"]
[]
[]
[]
[null,null,null,null,null,null,null,"3 4 4 5 7 6"]
[]
[]
[]
[null,null,null,null,null,null,null,"3 4 4 5 7 7"]
[]
[]
[]
[null,null,null,null,null,null,null,"3 4 4 5 7 8"]
[]
[]
[]
[null,null,null,null,null,null,null,"3 4 4 6 5 6"]
[]
[]
[]
[null,null,null,null,null,null,null,"3 4 4 6 5 7"]
[]
[]
[]
[null,null,null,null,null,null,null,"3 4 4 6 5 8"]
[]
[]
[]
[null,null,null,null,null,null,null,"3 4 4 6 6 6"]
[]
[]
[]
[null,null,null,null,null,null,null,"3 4 4 6 6 7"]
[]
[]
[]
[null,null,null,null,null,null,null,"3 4 4 6 6 8"]
[]
[]
[]
[null,null,null,null,null,null,null,"3 4 4 6 7 6"]
[]
[]
[]
[null,null,null,null,null,null,null,"3 4 4 6 7 7"]
[]
[]
[]
[null,null,null,null,null,null,null,"3 4 4 6 7 8"]
[]
[]
[]
[null,null,null,null,null,null,null,"3 4 5 4 5 6"]
[]
[]
[]
[null,null,null,null,null,null,null,"3 4 5 4 5 7"]
[]
[]
[]
[null,null,null,null,null,null,null,"3 4 5 4 5 8"]
[]
[]
[]
[null,null,null,null,null,null,null,"3 4 5 4 6 6"]
[]
[]
[]
[null,null,null,null,null,null,null,"3 4 5 4 6 7"]
[]
[]
[]
[null,null,null,null,null,null,null,"3 4 5 4 6 8"]
[]
[]
[]
[null,null,null,null,null,null,null,"3 4 5 4 7 6"]
[]
[]
[]
[null,null,null,null,null,null,null,"3 4 5 4 7 7"]
[]
[]
[]
[null,null,null,null,null,null,null,"3 4 5 4 7 8"]
[]
[]
[]
[null,null,null,null,null,null,null,"3 4 5 5 5 6"]
[]
[]
[]
[null,null,null,null,null,null,null,"3 4 5 5 5 7"]
[]
[]
[]
[null,null,null,null,null,null,null,"3 4 5 5 5 8"]
[]
[]
[]
[null,null,null,null,null,null,null,"3 4 5 5 6 6"]
[]
[]
[]
[null,null,null,null,null,null,null,"3 4 5 5 6 7"]
[]
[]
[]
[null,null,null,null,null,null,null,"3 4 5 5 6 8"]
[]
[]
[]
[null,null,null,null,null,null,null,"3 4 5 5 7 6"]
[]
[]
[]
[null,null,null,null,null,null,null,"3 4 5 5 7 7"]
[]
[]
[]
[null,null,null,null,null,null,null,"3 4 5 5 7 8"]
[]
[]
[]
[null,null,null,null,null,null,null,"3 4 5 6 5 6"]
[]
[]
[]
[null,null,null,null,null,null,null,"3 4 5 6 5 7"]
[]
[]
[]
[null,null,null,null,null,null,null,"3 4 5 6 5 8"]
[]
[]
[]
[null,null,null,null,null,null,null,"3 4 5 6 6 6"]
[]
[]
[]
[null,null,null,null,null,null,null,"3 4 5 6 6 7"]
[]
[]
[]
[null,null,null,null,null,null,null,"3 4 5 6 6 8"]
[]
[]
[]
[null,null,null,null,null,null,null,"3 4 5 6 7 6"]
[]
[]
[]
[null,null,null,null,null,null,null,"3 4 5 6 7 7"]
[]
[]
[]
[null,null,null,null,null,null,null,"3 4 5 6 7 8"]
[]
[]
[]
[null,null,null,null,null,null,null,"1 2 3 4 5 6"]
[]
[]
[]
[null,null,null,null,null,null,null,"1 2 3 4 5 7"]
[]
[]
[]
[null,null,null,null,null,null,null,"1 2 3 4 5 8"]
[]
[]
[]
[null,null,null,null,null,null,null,"1 2 3 4 6 6"]
[]
[]
[]
[null,null,null,null,null,null,null,"1 2 3 4 6 7"]
[]
[]
[]
[null,null,null,null,null,null,null,"1 2 3 4 6 8"]
[]
[]
[]
[null,null,null,null,null,null,null,"1 2 3 4 7 6"]
[]
[]
[]
[null,null,null,null,null,null,null,"1 2 3 4 7 7"]
[]
[]
[]
[null,null,null,null,null,null,null,"1 2 3 4 7 8"]
[]
[]
[]
[null,null,null,null,null,null,null,"1 2 3 5 5 6"]
[]
[]
[]
[null,null,null,null,null,null,null,"1 2 3 5 5 7"]
[]
[]
[]
[null,null,null,null,null,null,null,"1 2 3 5 5 8"]
[]
[]
[]
[null,null,null,null,null,null,null,"1 2 3 5 6 6"]
[]
[]
[]
[null,null,null,null,null,null,null,"1 2 3 5 6 7"]
[]
[]
[]
[null,null,null,null,null,null,null,"1 2 3 5 6 8"]
[]
[]
[]
[null,null,null,null,null,null,null,"1 2 3 5 7 6"]
[]
[]
[]
[null,null,null,null,null,null,null,"1 2 3 5 7 7"]
[]
[]
[]
[null,null,null,null,null,null,null,"1 2 3 5 7 8"]
[]
[]
[]
[null,null,null,null,null,null,null,"1 2 3 6 5 6"]
[]
[]
[]
[null,null,null,null,null,null,null,"1 2 3 6 5 7"]
[]
[]
[]
[null,null,null,null,null,null,null,"1 2 3 6 5 8"]
[]
[]
[]
[null,null,null,null,null,null,null,"1 2 3 6 6 6"]
[]
[]
[]
[null,null,null,null,null,null,null,"1 2 3 6 6 7"]
[]
[]
[]
[null,null,null,null,null,null,null,"1 2 3 6 6 8"]
[]
[]
[]
[null,null,null,null,null,null,null,"1 2 3 6 7 6"]
[]
[]
[]
[null,null,null,null,null,null,null,"1 2 3 6 7 7"]
[]
[]
[]
[null,null,null,null,null,null,null,"1 2 3 6 7 8"]
[]
[]
[]
[null,null,null,null,null,null,null,"1 2 4 4 5 6"]
[]
[]
[]
[null,null,null,null,null,null,null,"1 2 4 4 5 7"]
[]
[]
[]
[null,null,null,null,null,null,null,"1 2 4 4 5 8"]
[]
[]
[]
[null,null,null,null,null,null,null,"1 2 4 4 6 6"]
[]
[]
[]
[null,null,null,null,null,null,null,"1 2 4 4 6 7"]
[]
[]
[]
[null,null,null,null,null,null,null,"1 2 4 4 6 8"]
[]
[]
[]
[null,null,null,null,null,null,null,"1 2 4 4 7 6"]
[]
[]
[]
[null,null,null,null,null,null,null,"1 2 4 4 7 7"]
[]
[]
[]
[null,null,null,null,null,null,null,"1 2 4 4 7 8"]
[]
[]
[]
[null,null,null,null,null,null,null,"1 2 4 5 5 6"]
[]
[]
[]
[null,null,null,null,null,null,null,"1 2 4 5 5 7"]
[]
[]
[]
[null,null,null,null,null,null,null,"1 2 4 5 5 8"]
[]
[]
[]
[null,null,null,null,null,null,null,"1 2 4 5 6 6"]
[]
[]
[]
[null,null,null,null,null,null,null,"1 2 4 5 6 7"]
[]
[]
[]
[null,null,null,null,null,null,null,"1 2 4 5 6 8"]
[]
[]
[]
[null,null,null,null,null,null,null,"1 2 4 5 7 6"]
[]
[]
[]
[null,null,null,null,null,null,null,"1 2 4 5 7 7"]
[]
[]
[]
[null,null,null,null,null,null,null,"1 2 4 5 7 8"]
[]
[]
[]
[null,null,null,null,null,null,null,"1 2 4 6 5 6"]
[]
[]
[]
[null,null,null,null,null,null,null,"1 2 4 6 5 7"]
[]
[]
[]
[null,null,null,null,null,null,null,"1 2 4 6 5 8"]
[]
[]
[]
[null,null,null,null,null,null,null,"1 2 4 6 6 6"]
[]
[]
[]
[null,null,null,null,null,null,null,"1 2 4 6 6 7"]
[]
[]
[]
[null,null,null,null,null,null,null,"1 2 4 6 6 8"]
[]
[]
[]
[null,null,null,null,null,null,null,"1 2 4 6 7 6"]
[]
[]
[]
[null,null,null,null,null,null,null,"1 2 4 6 7 7"]
[]
[]
[]
[null,null,null,null,null,null,null,"1 2 4 6 7 8"]
[]
[]
[]
[null,null,null,null,null,null,null,"1 2 5 4 5 6"]
[]
[]
[]
[null,null,null,null,null,null,null,"1 2 5 4 5 7"]
[]
[]
[]
[null,null,null,null,null,null,null,"1 2 5 4 5 8"]
[]
[]
[]
[null,null,null,null,null,null,null,"1 2 5 4 6 6"]
[]
[]
[]
[null,null,null,null,null,null,null,"1 2 5 4 6 7"]
[]
[]
[]
[null,null,null,null,null,null,null,"1 2 5 4 6 8"]
[]
[]
[]
[null,null,null,null,null,null,null,"1 2 5 4 7 6"]
[]
[]
[]
[null,null,null,null,null,null,null,"1 2 5 4 7 7"]
[]
[]
[]
[null,null,null,null,null,null,null,"1 2 5 4 7 8"]
[]
[]
[]
[null,null,null,null,null,null,null,"1 2 5 5 5 6"]
[]
[]
[]
[null,null,null,null,null,null,null,"1 2 5 5 5 7"]
[]
[]
[]
[null,null,null,null,null,null,null,"1 2 5 5 5 8"]
[]
[]
[]
[null,null,null,null,null,null,null,"1 2 5 5 6 6"]
[]
[]
[]
[null,null,null,null,null,null,null,"1 2 5 5 6 7"]
[]
[]
[]
[null,null,null,null,null,null,null,"1 2 5 5 6 8"]
[]
[]
[]
[null,null,null,null,null,null,null,"1 2 5 5 7 6"]
[]
[]
[]
[null,null,null,null,null,null,null,"1 2 5 5 7 7"]
[]
[]
[]
[null,null,null,null,null,null,null,"1 2 5 5 7 8"]
[]
[]
[]
[null,null,null,null,null,null,null,"1 2 5 6 5 6"]
[]
[]
[]
[null,null,null,null,null,null,null,"1 2 5 6 5 7"]
[]
[]
[]
[null,null,null,null,null,null,null,"1 2 5 6 5 8"]
[]
[]
[]
[null,null,null,null,null,null,null,"1 2 5 6 6 6"]
[]
[]
[]
[null,null,null,null,null,null,null,"1 2 5 6 6 7"]
[]
[]
[]
[null,null,null,null,null,null,null,"1 2 5 6 6 8"]
[]
[]
[]
[null,null,null,null,null,null,null,"1 2 5 6 7 6"]
[]
[]
[]
[null,null,null,null,null,null,null,"1 2 5 6 7 7"]
[]
[]
[]
[null,null,null,null,null,null,null,"1 2 5 6 7 8"]
[]
[]
[]
[null,null,null,null,null,null,null,"1 3 3 4 5 6"]
[]
[]
[]
[null,null,null,null,null,null,null,"1 3 3 4 5 7"]
[]
[]
[]
[null,null,null,null,null,null,null,"1 3 3 4 5 8"]
[]
[]
[]
[null,null,null,null,null,null,null,"1 3 3 4 6 6"]
[]
[]
[]
[null,null,null,null,null,null,null,"1 3 3 4 6 7"]
[]
[]
[]
[null,null,null,null,null,null,null,"1 3 3 4 6 8"]
[]
[]
[]
[null,null,null,null,null,null,null,"1 3 3 4 7 6"]
[]
[]
[]
[null,null,null,null,null,null,null,"1 3 3 4 7 7"]
[]
[]
[]
[null,null,null,null,null,null,null,"1 3 3 4 7 8"]
[]
[]
[]
[null,null,null,null,null,null,null,"1 3 3 5 5 6"]
[]
[]
[]
[null,null,null,null,null,null,null,"1 3 3 5 5 7"]
[]
[]
[]
[null,null,null,null,null,null,null,"1 3 3 5 5 8"]
[]
[]
[]
[null,null,null,null,null,null,null,"1 3 3 5 6 6"]
[]
[]
[]
[null,null,null,null,null,null,null,"1 3 3 5 6 7"]
[]
[]
[]
[null,null,null,null,null,null,null,"1 3 3 5 6 8"]
[]
[]
[]
[null,null,null,null,null,null,null,"1 3 3 5 7 6"]
[]
[]
[]
[null,null,null,null,null,null,null,"1 3 3 5 7 7"]
[]
[]
[]
[null,null,null,null,null,null,null,"1 3 3 5 7 8"]
[]
[]
[]
[null,null,null,null,null,null,null,"1 3 3 6 5 6"]
[]
[]
[]
[null,null,null,null,null,null,null,"1 3 3 6 5 7"]
[]
[]
[]
[null,null,null,null,null,null,null,"1 3 3 6 5 8"]
[]
[]
[]
[null,null,null,null,null,null,null,"1 3 3 6 6 6"]
[]
[]
[]
[null,null,null,null,null,null,null,"1 3 3 6 6 7"]
[]
[]
[]
[null,null,null,null,null,null,null,"1 3 3 6 6 8"]
[]
[]
[]
[null,null,null,null,null,null,null,"1 3 3 6 7 6"]
[]
[]
[]
[null,null,null,null,null,null,null,"1 3 3 6 7 7"]
[]
[]
[]
[null,null,null,null,null,null,null,"1 3 3 6 7 8"]
[]
[]
[]
[null,null,null,null,null,null,null,"1 3 4 4 5 6"]
[]
[]
[]
[null,null,null,null,null,null,null,"1 3 4 4 5 7"]
[]
[]
[]
[null,null,null,null,null,null,null,"1 3 4 4 5 8"]
[]
[]
[]
[null,null,null,null,null,null,null,"1 3 4 4 6 6"]
[]
[]
[]
[null,null,null,null,null,null,null,"1 3 4 4 6 7"]
[]
[]
[]
[null,null,null,null,null,null,null,"1 3 4 4 6 8"]
[]
[]
[]
[null,null,null,null,null,null,null,"1 3 4 4 7 6"]
[]
[]
[]
[null,null,null,null,null,null,null,"1 3 4 4 7 7"]
[]
[]
[]
[null,null,null,null,null,null,null,"1 3 4 4 7 8"]
[]
[]
[]
[null,null,null,null,null,null,null,"1 3 4 5 5 6"]
[]
[]
[]
[null,null,null,null,null,null,null,"1 3 4 5 5 7"]
[]
[]
[]
[null,null,null,null,null,null,null,"1 3 4 5 5 8"]
[]
[]
[]
[null,null,null,null,null,null,null,"1 3 4 5 6 6"]
[]
[]
[]
[null,null,null,null,null,null,null,"1 3 4 5 6 7"]
[]
[]
[]
[null,null,null,null,null,null,null,"1 3 4 5 6 8"]
[]
[]
[]
[null,null,null,null,null,null,null,"1 3 4 5 7 6"]
[]
[]
[]
[null,null,null,null,null,null,null,"1 3 4 5 7 7"]
[]
[]
[]
[null,null,null,null,null,null,null,"1 3 4 5 7 8"]
[]
[]
[]
[null,null,null,null,null,null,null,"1 3 4 6 5 6"]
[]
[]
[]
[null,null,null,null,null,null,null,"1 3 4 6 5 7"]
[]
[]
[]
[null,null,null,null,null,null,null,"1 3 4 6 5 8"]
[]
[]
[]
[null,null,null,null,null,null,null,"1 3 4 6 6 6"]
[]
[]
[]
[null,null,null,null,null,null,null,"1 3 4 6 6 7"]
[]
[]
[]
[null,null,null,null,null,null,null,"1 3 4 6 6 8"]
[]
[]
[]
[null,null,null,null,null,null,null,"1 3 4 6 7 6"]
[]
[]
[]
[null,null,null,null,null,null,null,"1 3 4 6 7 7"]
[]
[]
[]
[null,null,null,null,null,null,null,"1 3 4 6 7 8"]
[]
[]
[]
[null,null,null,null,null,null,null,"1 3 5 4 5 6"]
[]
[]
[]
[null,null,null,null,null,null,null,"1 3 5 4 5 7"]
[]
[]
[]
[null,null,null,null,null,null,null,"1 3 5 4 5 8"]
[]
[]
[]
[null,null,null,null,null,null,null,"1 3 5 4 6 6"]
[]
[]
[]
[null,null,null,null,null,null,null,"1 3 5 4 6 7"]
[]
[]
[]
[null,null,null,null,null,null,null,"1 3 5 4 6 8"]
[]
[]
[]
[null,null,null,null,null,null,null,"1 3 5 4 7 6"]
[]
[]
[]
[null,null,null,null,null,null,null,"1 3 5 4 7 7"]
[]
[]
[]
[null,null,null,null,null,null,null,"1 3 5 4 7 8"]
[]
[]
[]
[null,null,null,null,null,null,null,"1 3 5 5 5 6"]
[]
[]
[]
[null,null,null,null,null,null,null,"1 3 5 5 5 7"]
[]
[]
[]
[null,null,null,null,null,null,null,"1 3 5 5 5 8"]
[]
[]
[]
[null,null,null,null,null,null,null,"1 3 5 5 6 6"]
[]
[]
[]
[null,null,null,null,null,null,null,"1 3 5 5 6 7"]
[]
[]
[]
[null,null,null,null,null,null,null,"1 3 5 5 6 8"]
[]
[]
[]
[null,null,null,null,null,null,null,"1 3 5 5 7 6"]
[]
[]
[]
[null,null,null,null,null,null,null,"1 3 5 5 7 7"]
[]
[]
[]
[null,null,null,null,null,null,null,"1 3 5 5 7 8"]
[]
[]
[]
[null,null,null,null,null,null,null,"1 3 5 6 5 6"]
[]
[]
[]
[null,null,null,null,null,null,null,"1 3 5 6 5 7"]
[]
[]
[]
[null,null,null,null,null,null,null,"1 3 5 6 5 8"]
[]
[]
[]
[null,null,null,null,null,null,null,"1 3 5 6 6 6"]
[]
[]
[]
[null,null,null,null,null,null,null,"1 3 5 6 6 7"]
[]
[]
[]
[null,null,null,null,null,null,null,"1 3 5 6 6 8"]
[]
[]
[]
[null,null,null,null,null,null,null,"1 3 5 6 7 6"]
[]
[]
[]
[null,null,null,null,null,null,null,"1 3 5 6 7 7"]
[]
[]
[]
[null,null,null,null,null,null,null,"1 3 5 6 7 8"]
[]
[]
[]
[null,null,null,null,null,null,null,"1 4 3 4 5 6"]
[]
[]
[]
[null,null,null,null,null,null,null,"1 4 3 4 5 7"]
[]
[]
[]
[null,null,null,null,null,null,null,"1 4 3 4 5 8"]
[]
[]
[]
[null,null,null,null,null,null,null,"1 4 3 4 6 6"]
[]
[]
[]
[null,null,null,null,null,null,null,"1 4 3 4 6 7"]
[]
[]
[]
[null,null,null,null,null,null,null,"1 4 3 4 6 8"]
[]
[]
[]
[null,null,null,null,null,null,null,"1 4 3 4 7 6"]
[]
[]
[]
[null,null,null,null,null,null,null,"1 4 3 4 7 7"]
[]
[]
[]
[null,null,null,null,null,null,null,"1 4 3 4 7 8"]
[]
[]
[]
[null,null,null,null,null,null,null,"1 4 3 5 5 6"]
[]
[]
[]
[null,null,null,null,null,null,null,"1 4 3 5 5 7"]
[]
[]
[]
[null,null,null,null,null,null,null,"1 4 3 5 5 8"]
[]
[]
[]
[null,null,null,null,null,null,null,"1 4 3 5 6 6"]
[]
[]
[]
[null,null,null,null,null,null,null,"1 4 3 5 6 7"]
[]
[]
[]
[null,null,null,null,null,null,null,"1 4 3 5 6 8"]
[]
[]
[]
[null,null,null,null,null,null,null,"1 4 3 5 7 6"]
[]
[]
[]
[null,null,null,null,null,null,null,"1 4 3 5 7 7"]
[]
[]
[]
[null,null,null,null,null,null,null,"1 4 3 5 7 8"]
[]
[]
[]
[null,null,null,null,null,null,null,"1 4 3 6 5 6"]
[]
[]
[]
[null,null,null,null,null,null,null,"1 4 3 6 5 7"]
[]
[]
[]
[null,null,null,null,null,null,null,"1 4 3 6 5 8"]
[]
[]
[]
[null,null,null,null,null,null,null,"1 4 3 6 6 6"]
[]
[]
[]
[null,null,null,null,null,null,null,"1 4 3 6 6 7"]
[]
[]
[]
[null,null,null,null,null,null,null,"1 4 3 6 6 8"]
[]
[]
[]
[null,null,null,null,null,null,null,"1 4 3 6 7 6"]
[]
[]
[]
[null,null,null,null,null,null,null,"1 4 3 6 7 7"]
[]
[]
[]
[null,null,null,null,null,null,null,"1 4 3 6 7 8"]
[]
[]
[]
[null,null,null,null,null,null,null,"1 4 4 4 5 6"]
[]
[]
[]
[null,null,null,null,null,null,null,"1 4 4 4 5 7"]
[]
[]
[]
[null,null,null,null,null,null,null,"1 4 4 4 5 8"]
[]
[]
[]
[null,null,null,null,null,null,null,"1 4 4 4 6 6"]
[]
[]
[]
[null,null,null,null,null,null,null,"1 4 4 4 6 7"]
[]
[]
[]
[null,null,null,null,null,null,null,"1 4 4 4 6 8"]
[]
[]
[]
[null,null,null,null,null,null,null,"1 4 4 4 7 6"]
[]
[]
[]
[null,null,null,null,null,null,null,"1 4 4 4 7 7"]
[]
[]
[]
[null,null,null,null,null,null,null,"1 4 4 4 7 8"]
[]
[]
[]
[null,null,null,null,null,null,null,"1 4 4 5 5 6"]
[]
[]
[]
[null,null,null,null,null,null,null,"1 4 4 5 5 7"]
[]
[]
[]
[null,null,null,null,null,null,null,"1 4 4 5 5 8"]
[]
[]
[]
[null,null,null,null,null,null,null,"1 4 4 5 6 6"]
[]
[]
[]
[null,null,null,null,null,null,null,"1 4 4 5 6 7"]
[]
[]
[]
[null,null,null,null,null,null,null,"1 4 4 5 6 8"]
[]
[]
[]
[null,null,null,null,null,null,null,"1 4 4 5 7 6"]
[]
[]
[]
[null,null,null,null,null,null,null,"1 4 4 5 7 7"]
[]
[]
[]
[null,null,null,null,null,null,null,"1 4 4 5 7 8"]
[]
[]
[]
[null,null,null,null,null,null,null,"1 4 4 6 5 6"]
[]
[]
[]
[null,null,null,null,null,null,null,"1 4 4 6 5 7"]
[]
[]
[]
[null,null,null,null,null,null,null,"1 4 4 6 5 8"]
[]
[]
[]
[null,null,null,null,null,null,null,"1 4 4 6 6 6"]
[]
[]
[]
[null,null,null,null,null,null,null,"1 4 4 6 6 7"]
[]
[]
[]
[null,null,null,null,null,null,null,"1 4 4 6 6 8"]
[]
[]
[]
[null,null,null,null,null,null,null,"1 4 4 6 7 6"]
[]
[]
[]
[null,null,null,null,null,null,null,"1 4 4 6 7 7"]
[]
[]
[]
[null,null,null,null,null,null,null,"1 4 4 6 7 8"]
[]
[]
[]
[null,null,null,null,null,null,null,"1 4 5 4 5 6"]
[]
[]
[]
[null,null,null,null,null,null,null,"1 4 5 4 5 7"]
[]
[]
[]
[null,null,null,null,null,null,null,"1 4 5 4 5 8"]
[]
[]
[]
[null,null,null,null,null,null,null,"1 4 5 4 6 6"]
[]
[]
[]
[null,null,null,null,null,null,null,"1 4 5 4 6 7"]
[]
[]
[]
[null,null,null,null,null,null,null,"1 4 5 4 6 8"]
[]
[]
[]
[null,null,null,null,null,null,null,"1 4 5 4 7 6"]
[]
[]
[]
[null,null,null,null,null,null,null,"1 4 5 4 7 7"]
[]
[]
[]
[null,null,null,null,null,null,null,"1 4 5 4 7 8"]
[]
[]
[]
[null,null,null,null,null,null,null,"1 4 5 5 5 6"]
[]
[]
[]
[null,null,null,null,null,null,null,"1 4 5 5 5 7"]
[]
[]
[]
[null,null,null,null,null,null,null,"1 4 5 5 5 8"]
[]
[]
[]
[null,null,null,null,null,null,null,"1 4 5 5 6 6"]
[]
[]
[]
[null,null,null,null,null,null,null,"1 4 5 5 6 7"]
[]
[]
[]
[null,null,null,null,null,null,null,"1 4 5 5 6 8"]
[]
[]
[]
[null,null,null,null,null,null,null,"1 4 5 5 7 6"]
[]
[]
[]
[null,null,null,null,null,null,null,"1 4 5 5 7 7"]
[]
[]
[]
[null,null,null,null,null,null,null,"1 4 5 5 7 8"]
[]
[]
[]
[null,null,null,null,null,null,null,"1 4 5 6 5 6"]
[]
[]
[]
[null,null,null,null,null,null,null,"1 4 5 6 5 7"]
[]
[]
[]
[null,null,null,null,null,null,null,"1 4 5 6 5 8"]
[]
[]
[]
[null,null,null,null,null,null,null,"1 4 5 6 6 6"]
[]
[]
[]
[null,null,null,null,null,null,null,"1 4 5 6 6 7"]
[]
[]
[]
[null,null,null,null,null,null,null,"1 4 5 6 6 8"]
[]
[]
[]
[null,null,null,null,null,null,null,"1 4 5 6 7 6"]
[]
[]
[]
[null,null,null,null,null,null,null,"1 4 5 6 7 7"]
[]
[]
[]
[null,null,null,null,null,null,null,"1 4 5 6 7 8"]
[]
[]
[]
[null,null,null,null,null,null,null,"2 2 3 4 5 6"]
[]
[]
[]
[null,null,null,null,null,null,null,"2 2 3 4 5 7"]
[]
[]
[]
[null,null,null,null,null,null,null,"2 2 3 4 5 8"]
[]
[]
[]
[null,null,null,null,null,null,null,"2 2 3 4 6 6"]
[]
[]
[]
[null,null,null,null,null,null,null,"2 2 3 4 6 7"]
[]
[]
[]
[null,null,null,null,null,null,null,"2 2 3 4 6 8"]
[]
[]
[]
[null,null,null,null,null,null,null,"2 2 3 4 7 6"]
[]
[]
[]
[null,null,null,null,null,null,null,"2 2 3 4 7 7"]
[]
[]
[]
[null,null,null,null,null,null,null,"2 2 3 4 7 8"]
[]
[]
[]
[null,null,null,null,null,null,null,"2 2 3 5 5 6"]
[]
[]
[]
[null,null,null,null,null,null,null,"2 2 3 5 5 7"]
[]
[]
[]
[null,null,null,null,null,null,null,"2 2 3 5 5 8"]
[]
[]
[]
[null,null,null,null,null,null,null,"2 2 3 5 6 6"]
[]
[]
[]
[null,null,null,null,null,null,null,"2 2 3 5 6 7"]
[]
[]
[]
[null,null,null,null,null,null,null,"2 2 3 5 6 8"]
[]
[]
[]
[null,null,null,null,null,null,null,"2 2 3 5 7 6"]
[]
[]
[]
[null,null,null,null,null,null,null,"2 2 3 5 7 7"]
[]
[]
[]
[null,null,null,null,null,null,null,"2 2 3 5 7 8"]
[]
[]
[]
[null,null,null,null,null,null,null,"2 2 3 6 5 6"]
[]
[]
[]
[null,null,null,null,null,null,null,"2 2 3 6 5 7"]
[]
[]
[]
[null,null,null,null,null,null,null,"2 2 3 6 5 8"]
[]
[]
[]
[null,null,null,null,null,null,null,"2 2 3 6 6 6"]
[]
[]
[]
[null,null,null,null,null,null,null,"2 2 3 6 6 7"]
[]
[]
[]
[null,null,null,null,null,null,null,"2 2 3 6 6 8"]
[]
[]
[]
[null,null,null,null,null,null,null,"2 2 3 6 7 6"]
[]
[]
[]
[null,null,null,null,null,null,null,"2 2 3 6 7 7"]
[]
[]
[]
[null,null,null,null,null,null,null,"2 2 3 6 7 8"]
[]
[]
[]
[null,null,null,null,null,null,null,"2 2 4 4 5 6"]
[]
[]
[]
[null,null,null,null,null,null,null,"2 2 4 4 5 7"]
[]
[]
[]
[null,null,null,null,null,null,null,"2 2 4 4 5 8"]
[]
[]
[]
[null,null,null,null,null,null,null,"2 2 4 4 6 6"]
[]
[]
[]
[null,null,null,null,null,null,null,"2 2 4 4 6 7"]
[]
[]
[]
[null,null,null,null,null,null,null,"2 2 4 4 6 8"]
[]
[]
[]
[null,null,null,null,null,null,null,"2 2 4 4 7 6"]
[]
[]
[]
[null,null,null,null,null,null,null,"2 2 4 4 7 7"]
[]
[]
[]
[null,null,null,null,null,null,null,"2 2 4 4 7 8"]
[]
[]
[]
[null,null,null,null,null,null,null,"2 2 4 5 5 6"]
[]
[]
[]
[null,null,null,null,null,null,null,"2 2 4 5 5 7"]
[]
[]
[]
[null,null,null,null,null,null,null,"2 2 4 5 5 8"]
[]
[]
[]
[null,null,null,null,null,null,null,"2 2 4 5 6 6"]
[]
[]
[]
[null,null,null,null,null,null,null,"2 2 4 5 6 7"]
[]
[]
[]
[null,null,null,null,null,null,null,"2 2 4 5 6 8"]
[]
[]
[]
[null,null,null,null,null,null,null,"2 2 4 5 7 6"]
[]
[]
[]
[null,null,null,null,null,null,null,"2 2 4 5 7 7"]
[]
[]
[]
[null,null,null,null,null,null,null,"2 2 4 5 7 8"]
[]
[]
[]
[null,null,null,null,null,null,null,"2 2 4 6 5 6"]
[]
[]
[]
[null,null,null,null,null,null,null,"2 2 4 6 5 7"]
[]
[]
[]
[null,null,null,null,null,null,null,"2 2 4 6 5 8"]
[]
[]
[]
[null,null,null,null,null,null,null,"2 2 4 6 6 6"]
[]
[]
[]
[null,null,null,null,null,null,null,"2 2 4 6 6 7"]
[]
[]
[]
[null,null,null,null,null,null,null,"2 2 4 6 6 8"]
[]
[]
[]
[null,null,null,null,null,null,null,"2 2 4 6 7 6"]
[]
[]
[]
[null,null,null,null,null,null,null,"2 2 4 6 7 7"]
[]
[]
[]
[null,null,null,null,null,null,null,"2 2 4 6 7 8"]
[]
[]
[]
[null,null,null,null,null,null,null,"2 2 5 4 5 6"]
[]
[]
[]
[null,null,null,null,null,null,null,"2 2 5 4 5 7"]
[]
[]
[]
[null,null,null,null,null,null,null,"2 2 5 4 5 8"]
[]
[]
[]
[null,null,null,null,null,null,null,"2 2 5 4 6 6"]
[]
[]
[]
[null,null,null,null,null,null,null,"2 2 5 4 6 7"]
[]
[]
[]
[null,null,null,null,null,null,null,"2 2 5 4 6 8"]
[]
[]
[]
[null,null,null,null,null,null,null,"2 2 5 4 7 6"]
[]
[]
[]
[null,null,null,null,null,null,null,"2 2 5 4 7 7"]
[]
[]
[]
[null,null,null,null,null,null,null,"2 2 5 4 7 8"]
[]
[]
[]
[null,null,null,null,null,null,null,"2 2 5 5 5 6"]
[]
[]
[]
[null,null,null,null,null,null,null,"2 2 5 5 5 7"]
[]
[]
[]
[null,null,null,null,null,null,null,"2 2 5 5 5 8"]
[]
[]
[]
[null,null,null,null,null,null,null,"2 2 5 5 6 6"]
[]
[]
[]
[null,null,null,null,null,null,null,"2 2 5 5 6 7"]
[]
[]
[]
[null,null,null,null,null,null,null,"2 2 5 5 6 8"]
[]
[]
[]
[null,null,null,null,null,null,null,"2 2 5 5 7 6"]
[]
[]
[]
[null,null,null,null,null,null,null,"2 2 5 5 7 7"]
[]
[]
[]
[null,null,null,null,null,null,null,"2 2 5 5 7 8"]
[]
[]
[]
[null,null,null,null,null,null,null,"2 2 5 6 5 6"]
[]
[]
[]
[null,null,null,null,null,null,null,"2 2 5 6 5 7"]
[]
[]
[]
[null,null,null,null,null,null,null,"2 2 5 6 5 8"]
[]
[]
[]
[null,null,null,null,null,null,null,"2 2 5 6 6 6"]
[]
[]
[]
[null,null,null,null,null,null,null,"2 2 5 6 6 7"]
[]
[]
[]
[null,null,null,null,null,null,null,"2 2 5 6 6 8"]
[]
[]
[]
[null,null,null,null,null,null,null,"2 2 5 6 7 6"]
[]
[]
[]
[null,null,null,null,null,null,null,"2 2 5 6 7 7"]
[]
[]
[]
[null,null,null,null,null,null,null,"2 2 5 6 7 8"]
[]
[]
[]
[null,null,null,null,null,null,null,"2 3 3 4 5 6"]
[]
[]
[]
[null,null,null,null,null,null,null,"2 3 3 4 5 7"]
[]
[]
[]
[null,null,null,null,null,null,null,"2 3 3 4 5 8"]
[]
[]
[]
[null,null,null,null,null,null,null,"2 3 3 4 6 6"]
[]
[]
[]
[null,null,null,null,null,null,null,"2 3 3 4 6 7"]
[]
[]
[]
[null,null,null,null,null,null,null,"2 3 3 4 6 8"]
[]
[]
[]
[null,null,null,null,null,null,null,"2 3 3 4 7 6"]
[]
[]
[]
[null,null,null,null,null,null,null,"2 3 3 4 7 7"]
[]
[]
[]
[null,null,null,null,null,null,null,"2 3 3 4 7 8"]
[]
[]
[]
[null,null,null,null,null,null,null,"2 3 3 5 5 6"]
[]
[]
[]
[null,null,null,null,null,null,null,"2 3 3 5 5 7"]
[]
[]
[]
[null,null,null,null,null,null,null,"2 3 3 5 5 8"]
[]
[]
[]
[null,null,null,null,null,null,null,"2 3 3 5 6 6"]
[]
[]
[]
[null,null,null,null,null,null,null,"2 3 3 5 6 7"]
[]
[]
[]
[null,null,null,null,null,null,null,"2 3 3 5 6 8"]
[]
[]
[]
[null,null,null,null,null,null,null,"2 3 3 5 7 6"]
[]
[]
[]
[null,null,null,null,null,null,null,"2 3 3 5 7 7"]
[]
[]
[]
[null,null,null,null,null,null,null,"2 3 3 5 7 8"]
[]
[]
[]
[null,null,null,null,null,null,null,"2 3 3 6 5 6"]
[]
[]
[]
[null,null,null,null,null,null,null,"2 3 3 6 5 7"]
[]
[]
[]
[null,null,null,null,null,null,null,"2 3 3 6 5 8"]
[]
[]
[]
[null,null,null,null,null,null,null,"2 3 3 6 6 6"]
[]
[]
[]
[null,null,null,null,null,null,null,"2 3 3 6 6 7"]
[]
[]
[]
[null,null,null,null,null,null,null,"2 3 3 6 6 8"]
[]
[]
[]
[null,null,null,null,null,null,null,"2 3 3 6 7 6"]
[]
[]
[]
[null,null,null,null,null,null,null,"2 3 3 6 7 7"]
[]
[]
[]
[null,null,null,null,null,null,null,"2 3 3 6 7 8"]
[]
[]
[]
[null,null,null,null,null,null,null,"2 3 4 4 5 6"]
[]
[]
[]
[null,null,null,null,null,null,null,"2 3 4 4 5 7"]
[]
[]
[]
[null,null,null,null,null,null,null,"2 3 4 4 5 8"]
[]
[]
[]
[null,null,null,null,null,null,null,"2 3 4 4 6 6"]
[]
[]
[]
[null,null,null,null,null,null,null,"2 3 4 4 6 7"]
[]
[]
[]
[null,null,null,null,null,null,null,"2 3 4 4 6 8"]
[]
[]
[]
[null,null,null,null,null,null,null,"2 3 4 4 7 6"]
[]
[]
[]
[null,null,null,null,null,null,null,"2 3 4 4 7 7"]
[]
[]
[]
[null,null,null,null,null,null,null,"2 3 4 4 7 8"]
[]
[]
[]
[null,null,null,null,null,null,null,"2 3 4 5 5 6"]
[]
[]
[]
[null,null,null,null,null,null,null,"2 3 4 5 5 7"]
[]
[]
[]
[null,null,null,null,null,null,null,"2 3 4 5 5 8"]
[]
[]
[]
[null,null,null,null,null,null,null,"2 3 4 5 6 6"]
[]
[]
[]
[null,null,null,null,null,null,null,"2 3 4 5 6 7"]
[]
[]
[]
[null,null,null,null,null,null,null,"2 3 4 5 6 8"]
[]
[]
[]
[null,null,null,null,null,null,null,"2 3 4 5 7 6"]
[]
[]
[]
[null,null,null,null,null,null,null,"2 3 4 5 7 7"]
[]
[]
[]
[null,null,null,null,null,null,null,"2 3 4 5 7 8"]
[]
[]
[]
[null,null,null,null,null,null,null,"2 3 4 6 5 6"]
[]
[]
[]
[null,null,null,null,null,null,null,"2 3 4 6 5 7"]
[]
[]
[]
[null,null,null,null,null,null,null,"2 3 4 6 5 8"]
[]
[]
[]
[null,null,null,null,null,null,null,"2 3 4 6 6 6"]
[]
[]
[]
[null,null,null,null,null,null,null,"2 3 4 6 6 7"]
[]
[]
[]
[null,null,null,null,null,null,null,"2 3 4 6 6 8"]
[]
[]
[]
[null,null,null,null,null,null,null,"2 3 4 6 7 6"]
[]
[]
[]
[null,null,null,null,null,null,null,"2 3 4 6 7 7"]
[]
[]
[]
[null,null,null,null,null,null,null,"2 3 4 6 7 8"]
[]
[]
[]
[null,null,null,null,null,null,null,"2 3 5 4 5 6"]
[]
[]
[]
[null,null,null,null,null,null,null,"2 3 5 4 5 7"]
[]
[]
[]
[null,null,null,null,null,null,null,"2 3 5 4 5 8"]
[]
[]
[]
[null,null,null,null,null,null,null,"2 3 5 4 6 6"]
[]
[]
[]
[null,null,null,null,null,null,null,"2 3 5 4 6 7"]
[]
[]
[]
[null,null,null,null,null,null,null,"2 3 5 4 6 8"]
[]
[]
[]
[null,null,null,null,null,null,null,"2 3 5 4 7 6"]
[]
[]
[]
[null,null,null,null,null,null,null,"2 3 5 4 7 7"]
[]
[]
[]
[null,null,null,null,null,null,null,"2 3 5 4 7 8"]
[]
[]
[]
[null,null,null,null,null,null,null,"2 3 5 5 5 6"]
[]
[]
[]
[null,null,null,null,null,null,null,"2 3 5 5 5 7"]
[]
[]
[]
[null,null,null,null,null,null,null,"2 3 5 5 5 8"]
[]
[]
[]
[null,null,null,null,null,null,null,"2 3 5 5 6 6"]
[]
[]
[]
[null,null,null,null,null,null,null,"2 3 5 5 6 7"]
[]
[]
[]
[null,null,null,null,null,null,null,"2 3 5 5 6 8"]
[]
[]
[]
[null,null,null,null,null,null,null,"2 3 5 5 7 6"]
[]
[]
[]
[null,null,null,null,null,null,null,"2 3 5 5 7 7"]
[]
[]
[]
[null,null,null,null,null,null,null,"2 3 5 5 7 8"]
[]
[]
[]
[null,null,null,null,null,null,null,"2 3 5 6 5 6"]
[]
[]
[]
[null,null,null,null,null,null,null,"2 3 5 6 5 7"]
[]
[]
[]
[null,null,null,null,null,null,null,"2 3 5 6 5 8"]
[]
[]
[]
[null,null,null,null,null,null,null,"2 3 5 6 6 6"]
[]
[]
[]
[null,null,null,null,null,null,null,"2 3 5 6 6 7"]
[]
[]
[]
[null,null,null,null,null,null,null,"2 3 5 6 6 8"]
[]
[]
[]
[null,null,null,null,null,null,null,"2 3 5 6 7 6"]
[]
[]
[]
[null,null,null,null,null,null,null,"2 3 5 6 7 7"]
[]
[]
[]
[null,null,null,null,null,null,null,"2 3 5 6 7 8"]
[]
[]
[]
[null,null,null,null,null,null,null,"2 4 3 4 5 6"]
[]
[]
[]
[null,null,null,null,null,null,null,"2 4 3 4 5 7"]
[]
[]
[]
[null,null,null,null,null,null,null,"2 4 3 4 5 8"]
[]
[]
[]
[null,null,null,null,null,null,null,"2 4 3 4 6 6"]
[]
[]
[]
[null,null,null,null,null,null,null,"2 4 3 4 6 7"]
[]
[]
[]
[null,null,null,null,null,null,null,"2 4 3 4 6 8"]
[]
[]
[]
[null,null,null,null,null,null,null,"2 4 3 4 7 6"]
[]
[]
[]
[null,null,null,null,null,null,null,"2 4 3 4 7 7"]
[]
[]
[]
[null,null,null,null,null,null,null,"2 4 3 4 7 8"]
[]
[]
[]
[null,null,null,null,null,null,null,"2 4 3 5 5 6"]
[]
[]
[]
[null,null,null,null,null,null,null,"2 4 3 5 5 7"]
[]
[]
[]
[null,null,null,null,null,null,null,"2 4 3 5 5 8"]
[]
[]
[]
[null,null,null,null,null,null,null,"2 4 3 5 6 6"]
[]
[]
[]
[null,null,null,null,null,null,null,"2 4 3 5 6 7"]
[]
[]
[]
[null,null,null,null,null,null,null,"2 4 3 5 6 8"]
[]
[]
[]
[null,null,null,null,null,null,null,"2 4 3 5 7 6"]
[]
[]
[]
[null,null,null,null,null,null,null,"2 4 3 5 7 7"]
[]
[]
[]
[null,null,null,null,null,null,null,"2 4 3 5 7 8"]
[]
[]
[]
[null,null,null,null,null,null,null,"2 4 3 6 5 6"]
[]
[]
[]
[null,null,null,null,null,null,null,"2 4 3 6 5 7"]
[]
[]
[]
[null,null,null,null,null,null,null,"2 4 3 6 5 8"]
[]
[]
[]
[null,null,null,null,null,null,null,"2 4 3 6 6 6"]
[]
[]
[]
[null,null,null,null,null,null,null,"2 4 3 6 6 7"]
[]
[]
[]
[null,null,null,null,null,null,null,"2 4 3 6 6 8"]
[]
[]
[]
[null,null,null,null,null,null,null,"2 4 3 6 7 6"]
[]
[]
[]
[null,null,null,null,null,null,null,"2 4 3 6 7 7"]
[]
[]
[]
[null,null,null,null,null,null,null,"2 4 3 6 7 8"]
[]
[]
[]
[null,null,null,null,null,null,null,"2 4 4 4 5 6"]
[]
[]
[]
[null,null,null,null,null,null,null,"2 4 4 4 5 7"]
[]
[]
[]
[null,null,null,null,null,null,null,"2 4 4 4 5 8"]
[]
[]
[]
[null,null,null,null,null,null,null,"2 4 4 4 6 6"]
[]
[]
[]
[null,null,null,null,null,null,null,"2 4 4 4 6 7"]
[]
[]
[]
[null,null,null,null,null,null,null,"2 4 4 4 6 8"]
[]
[]
[]
[null,null,null,null,null,null,null,"2 4 4 4 7 6"]
[]
[]
[]
[null,null,null,null,null,null,null,"2 4 4 4 7 7"]
[]
[]
[]
[null,null,null,null,null,null,null,"2 4 4 4 7 8"]
[]
[]
[]
[null,null,null,null,null,null,null,"2 4 4 5 5 6"]
[]
[]
[]
[null,null,null,null,null,null,null,"2 4 4 5 5 7"]
[]
[]
[]
[null,null,null,null,null,null,null,"2 4 4 5 5 8"]
[]
[]
[]
[null,null,null,null,null,null,null,"2 4 4 5 6 6"]
[]
[]
[]
[null,null,null,null,null,null,null,"2 4 4 5 6 7"]
[]
[]
[]
[null,null,null,null,null,null,null,"2 4 4 5 6 8"]
[]
[]
[]
[null,null,null,null,null,null,null,"2 4 4 5 7 6"]
[]
[]
[]
[null,null,null,null,null,null,null,"2 4 4 5 7 7"]
[]
[]
[]
[null,null,null,null,null,null,null,"2 4 4 5 7 8"]
[]
[]
[]
[null,null,null,null,null,null,null,"2 4 4 6 5 6"]
[]
[]
[]
[null,null,null,null,null,null,null,"2 4 4 6 5 7"]
[]
[]
[]
[null,null,null,null,null,null,null,"2 4 4 6 5 8"]
[]
[]
[]
[null,null,null,null,null,null,null,"2 4 4 6 6 6"]
[]
[]
[]
[null,null,null,null,null,null,null,"2 4 4 6 6 7"]
[]
[]
[]
[null,null,null,null,null,null,null,"2 4 4 6 6 8"]
[]
[]
[]
[null,null,null,null,null,null,null,"2 4 4 6 7 6"]
[]
[]
[]
[null,null,null,null,null,null,null,"2 4 4 6 7 7"]
[]
[]
[]
[null,null,null,null,null,null,null,"2 4 4 6 7 8"]
[]
[]
[]
[null,null,null,null,null,null,null,"2 4 5 4 5 6"]
[]
[]
[]
[null,null,null,null,null,null,null,"2 4 5 4 5 7"]
[]
[]
[]
[null,null,null,null,null,null,null,"2 4 5 4 5 8"]
[]
[]
[]
[null,null,null,null,null,null,null,"2 4 5 4 6 6"]
[]
[]
[]
[null,null,null,null,null,null,null,"2 4 5 4 6 7"]
[]
[]
[]
[null,null,null,null,null,null,null,"2 4 5 4 6 8"]
[]
[]
[]
[null,null,null,null,null,null,null,"2 4 5 4 7 6"]
[]
[]
[]
[null,null,null,null,null,null,null,"2 4 5 4 7 7"]
[]
[]
[]
[null,null,null,null,null,null,null,"2 4 5 4 7 8"]
[]
[]
[]
[null,null,null,null,null,null,null,"2 4 5 5 5 6"]
[]
[]
[]
[null,null,null,null,null,null,null,"2 4 5 5 5 7"]
[]
[]
[]
[null,null,null,null,null,null,null,"2 4 5 5 5 8"]
[]
[]
[]
[null,null,null,null,null,null,null,"2 4 5 5 6 6"]
[]
[]
[]
[null,null,null,null,null,null,null,"2 4 5 5 6 7"]
[]
[]
[]
[null,null,null,null,null,null,null,"2 4 5 5 6 8"]
[]
[]
[]
[null,null,null,null,null,null,null,"2 4 5 5 7 6"]
[]
[]
[]
[null,null,null,null,null,null,null,"2 4 5 5 7 7"]
[]
[]
[]
[null,null,null,null,null,null,null,"2 4 5 5 7 8"]
[]
[]
[]
[null,null,null,null,null,null,null,"2 4 5 6 5 6"]
[]
[]
[]
[null,null,null,null,null,null,null,"2 4 5 6 5 7"]
[]
[]
[]
[null,null,null,null,null,null,null,"2 4 5 6 5 8"]
[]
[]
[]
[null,null,null,null,null,null,null,"2 4 5 6 6 6"]
[]
[]
[]
[null,null,null,null,null,null,null,"2 4 5 6 6 7"]
[]
[]
[]
[null,null,null,null,null,null,null,"2 4 5 6 6 8"]
[]
[]
[]
[null,null,null,null,null,null,null,"2 4 5 6 7 6"]
[]
[]
[]
[null,null,null,null,null,null,null,"2 4 5 6 7 7"]
[]
[]
[]
[null,null,null,null,null,null,null,"2 4 5 6 7 8"]
[]
[]
[]
[null,null,null,null,null,null,null,"3 2 3 4 5 6"]
[]
[]
[]
[null,null,null,null,null,null,null,"3 2 3 4 5 7"]
[]
[]
[]
[null,null,null,null,null,null,null,"3 2 3 4 5 8"]
[]
[]
[]
[null,null,null,null,null,null,null,"3 2 3 4 6 6"]
[]
[]
[]
[null,null,null,null,null,null,null,"3 2 3 4 6 7"]
[]
[]
[]
[null,null,null,null,null,null,null,"3 2 3 4 6 8"]
[]
[]
[]
[null,null,null,null,null,null,null,"3 2 3 4 7 6"]
[]
[]
[]
[null,null,null,null,null,null,null,"3 2 3 4 7 7"]
[]
[]
[]
[null,null,null,null,null,null,null,"3 2 3 4 7 8"]
[]
[]
[]
[null,null,null,null,null,null,null,"3 2 3 5 5 6"]
[]
[]
[]
[null,null,null,null,null,null,null,"3 2 3 5 5 7"]
[]
[]
[]
[null,null,null,null,null,null,null,"3 2 3 5 5 8"]
[]
[]
[]
[null,null,null,null,null,null,null,"3 2 3 5 6 6"]
[]
[]
[]
[null,null,null,null,null,null,null,"3 2 3 5 6 7"]
[]
[]
[]
[null,null,null,null,null,null,null,"3 2 3 5 6 8"]
[]
[]
[]
[null,null,null,null,null,null,null,"3 2 3 5 7 6"]
[]
[]
[]
[null,null,null,null,null,null,null,"3 2 3 5 7 7"]
[]
[]
[]
[null,null,null,null,null,null,null,"3 2 3 5 7 8"]
[]
[]
[]
[null,null,null,null,null,null,null,"3 2 3 6 5 6"]
[]
[]
[]
[null,null,null,null,null,null,null,"3 2 3 6 5 7"]
[]
[]
[]
[null,null,null,null,null,null,null,"3 2 3 6 5 8"]
[]
[]
[]
[null,null,null,null,null,null,null,"3 2 3 6 6 6"]
[]
[]
[]
[null,null,null,null,null,null,null,"3 2 3 6 6 7"]
[]
[]
[]
[null,null,null,null,null,null,null,"3 2 3 6 6 8"]
[]
[]
[]
[null,null,null,null,null,null,null,"3 2 3 6 7 6"]
[]
[]
[]
[null,null,null,null,null,null,null,"3 2 3 6 7 7"]
[]
[]
[]
[null,null,null,null,null,null,null,"3 2 3 6 7 8"]
[]
[]
[]
[null,null,null,null,null,null,null,"3 2 4 4 5 6"]
[]
[]
[]
[null,null,null,null,null,null,null,"3 2 4 4 5 7"]
[]
[]
[]
[null,null,null,null,null,null,null,"3 2 4 4 5 8"]
[]
[]
[]
[null,null,null,null,null,null,null,"3 2 4 4 6 6"]
[]
[]
[]
[null,null,null,null,null,null,null,"3 2 4 4 6 7"]
[]
[]
[]
[null,null,null,null,null,null,null,"3 2 4 4 6 8"]
[]
[]
[]
[null,null,null,null,null,null,null,"3 2 4 4 7 6"]
[]
[]
[]
[null,null,null,null,null,null,null,"3 2 4 4 7 7"]
[]
[]
[]
[null,null,null,null,null,null,null,"3 2 4 4 7 8"]
[]
[]
[]
[null,null,null,null,null,null,null,"3 2 4 5 5 6"]
[]
[]
[]
[null,null,null,null,null,null,null,"3 2 4 5 5 7"]
[]
[]
[]
[null,null,null,null,null,null,null,"3 2 4 5 5 8"]
[]
[]
[]
[null,null,null,null,null,null,null,"3 2 4 5 6 6"]
[]
[]
[]
[null,null,null,null,null,null,null,"3 2 4 5 6 7"]
[]
[]
[]
[null,null,null,null,null,null,null,"3 2 4 5 6 8"]
[]
[]
[]
[null,null,null,null,null,null,null,"3 2 4 5 7 6"]
[]
[]
[]
[null,null,null,null,null,null,null,"3 2 4 5 7 7"]
[]
[]
[]
[null,null,null,null,null,null,null,"3 2 4 5 7 8"]
[]
[]
[]
[null,null,null,null,null,null,null,"3 2 4 6 5 6"]
[]
[]
[]
[null,null,null,null,null,null,null,"3 2 4 6 5 7"]
[]
[]
[]
[null,null,null,null,null,null,null,"3 2 4 6 5 8"]
[]
[]
[]
[null,null,null,null,null,null,null,"3 2 4 6 6 6"]
[]
[]
[]
[null,null,null,null,null,null,null,"3 2 4 6 6 7"]
[]
[]
[]
[null,null,null,null,null,null,null,"3 2 4 6 6 8"]
[]
[]
[]
[null,null,null,null,null,null,null,"3 2 4 6 7 6"]
[]
[]
[]
[null,null,null,null,null,null,null,"3 2 4 6 7 7"]
[]
[]
[]
[null,null,null,null,null,null,null,"3 2 4 6 7 8"]
[]
[]
[]
[null,null,null,null,null,null,null,"3 2 5 4 5 6"]
[]
[]
[]
[null,null,null,null,null,null,null,"3 2 5 4 5 7"]
[]
[]
[]
[null,null,null,null,null,null,null,"3 2 5 4 5 8"]
[]
[]
[]
[null,null,null,null,null,null,null,"3 2 5 4 6 6"]
[]
[]
[]
[null,null,null,null,null,null,null,"3 2 5 4 6 7"]
[]
[]
[]
[null,null,null,null,null,null,null,"3 2 5 4 6 8"]
[]
[]
[]
[null,null,null,null,null,null,null,"3 2 5 4 7 6"]
[]
[]
[]
[null,null,null,null,null,null,null,"3 2 5 4 7 7"]
[]
[]
[]
[null,null,null,null,null,null,null,"3 2 5 4 7 8"]
[]
[]
[]
[null,null,null,null,null,null,null,"3 2 5 5 5 6"]
[]
[]
[]
[null,null,null,null,null,null,null,"3 2 5 5 5 7"]
[]
[]
[]
[null,null,null,null,null,null,null,"3 2 5 5 5 8"]
[]
[]
[]
[null,null,null,null,null,null,null,"3 2 5 5 6 6"]
[]
[]
[]
[null,null,null,null,null,null,null,"3 2 5 5 6 7"]
[]
[]
[]
[null,null,null,null,null,null,null,"3 2 5 5 6 8"]
[]
[]
[]
[null,null,null,null,null,null,null,"3 2 5 5 7 6"]
[]
[]
[]
[null,null,null,null,null,null,null,"3 2 5 5 7 7"]
[]
[]
[]
[null,null,null,null,null,null,null,"3 2 5 5 7 8"]
[]
[]
[]
[null,null,null,null,null,null,null,"3 2 5 6 5 6"]
[]
[]
[]
[null,null,null,null,null,null,null,"3 2 5 6 5 7"]
[]
[]
[]
[null,null,null,null,null,null,null,"3 2 5 6 5 8"]
[]
[]
[]
[null,null,null,null,null,null,null,"3 2 5 6 6 6"]
[]
[]
[]
[null,null,null,null,null,null,null,"3 2 5 6 6 7"]
[]
[]
[]
[null,null,null,null,null,null,null,"3 2 5 6 6 8"]
[]
[]
[]
[null,null,null,null,null,null,null,"3 2 5 6 7 6"]
[]
[]
[]
[null,null,null,null,null,null,null,"3 2 5 6 7 7"]
[]
[]
[]
[null,null,null,null,null,null,null,"3 2 5 6 7 8"]
[]
[]
[]
[null,null,null,null,null,null,null,"3 3 3 4 5 6"]
[]
[]
[]
[null,null,null,null,null,null,null,"3 3 3 4 5 7"]
[]
[]
[]
[null,null,null,null,null,null,null,"3 3 3 4 5 8"]
[]
[]
[]
[null,null,null,null,null,null,null,"3 3 3 4 6 6"]
[]
[]
[]
[null,null,null,null,null,null,null,"3 3 3 4 6 7"]
[]
[]
[]
[null,null,null,null,null,null,null,"3 3 3 4 6 8"]
[]
[]
[]
[null,null,null,null,null,null,null,"3 3 3 4 7 6"]
[]
[]
[]
[null,null,null,null,null,null,null,"3 3 3 4 7 7"]
[]
[]
[]
[null,null,null,null,null,null,null,"3 3 3 4 7 8"]
[]
[]
[]
[null,null,null,null,null,null,null,"3 3 3 5 5 6"]
[]
[]
[]
[null,null,null,null,null,null,null,"3 3 3 5 5 7"]
[]
[]
[]
[null,null,null,null,null,null,null,"3 3 3 5 5 8"]
[]
[]
[]
[null,null,null,null,null,null,null,"3 3 3 5 6 6"]
[]
[]
[]
[null,null,null,null,null,null,null,"3 3 3 5 6 7"]
[]
[]
[]
[null,null,null,null,null,null,null,"3 3 3 5 6 8"]
[]
[]
[]
[null,null,null,null,null,null,null,"3 3 3 5 7 6"]
[]
[]
[]
[null,null,null,null,null,null,null,"3 3 3 5 7 7"]
[]
[]
[]
[null,null,null,null,null,null,null,"3 3 3 5 7 8"]
[]
[]
[]
[null,null,null,null,null,null,null,"3 3 3 6 5 6"]
[]
[]
[]
[null,null,null,null,null,null,null,"3 3 3 6 5 7"]
[]
[]
[]
[null,null,null,null,null,null,null,"3 3 3 6 5 8"]
[]
[]
[]
[null,null,null,null,null,null,null,"3 3 3 6 6 6"]
[]
[]
[]
[null,null,null,null,null,null,null,"3 3 3 6 6 7"]
[]
[]
[]
[null,null,null,null,null,null,null,"3 3 3 6 6 8"]
[]
[]
[]
[null,null,null,null,null,null,null,"3 3 3 6 7 6"]
[]
[]
[]
[null,null,null,null,null,null,null,"3 3 3 6 7 7"]
[]
[]
[]
[null,null,null,null,null,null,null,"3 3 3 6 7 8"]
[]
[]
[]
[null,null,null,null,null,null,null,"3 3 4 4 5 6"]
[]
[]
[]
[null,null,null,null,null,null,null,"3 3 4 4 5 7"]
[]
[]
[]
[null,null,null,null,null,null,null,"3 3 4 4 5 8"]
[]
[]
[]
[null,null,null,null,null,null,null,"3 3 4 4 6 6"]
[]
[]
[]
[null,null,null,null,null,null,null,"3 3 4 4 6 7"]
[]
[]
[]
[null,null,null,null,null,null,null,"3 3 4 4 6 8"]
[]
[]
[]
[null,null,null,null,null,null,null,"3 3 4 4 7 6"]
[]
[]
[]
[null,null,null,null,null,null,null,"3 3 4 4 7 7"]
[]
[]
[]
[null,null,null,null,null,null,null,"3 3 4 4 7 8"]
[]
[]
[]
[null,null,null,null,null,null,null,"3 3 4 5 5 6"]
[]
[]
[]
[null,null,null,null,null,null,null,"3 3 4 5 5 7"]
[]
[]
[]
[null,null,null,null,null,null,null,"3 3 4 5 5 8"]
[]
[]
[]
[null,null,null,null,null,null,null,"3 3 4 5 6 6"]
[]
[]
[]
[null,null,null,null,null,null,null,"3 3 4 5 6 7"]
[]
[]
[]
[null,null,null,null,null,null,null,"3 3 4 5 6 8"]
[]
[]
[]
[null,null,null,null,null,null,null,"3 3 4 5 7 6"]
[]
[]
[]
[null,null,null,null,null,null,null,"3 3 4 5 7 7"]
[]
[]
[]
[null,null,null,null,null,null,null,"3 3 4 5 7 8"]
[]
[]
[]
[null,null,null,null,null,null,null,"3 3 4 6 5 6"]
[]
[]
[]
[null,null,null,null,null,null,null,"3 3 4 6 5 7"]
[]
[]
[]
[null,null,null,null,null,null,null,"3 3 4 6 5 8"]
[]
[]
[]
[null,null,null,null,null,null,null,"3 3 4 6 6 6"]
[]
[]
[]
[null,null,null,null,null,null,null,"3 3 4 6 6 7"]
[]
[]
[]
[null,null,null,null,null,null,null,"3 3 4 6 6 8"]
[]
[]
[]
[null,null,null,null,null,null,null,"3 3 4 6 7 6"]
[]
[]
[]
[null,null,null,null,null,null,null,"3 3 4 6 7 7"]
[]
[]
[]
[null,null,null,null,null,null,null,"3 3 4 6 7 8"]
[]
[]
[]
[null,null,null,null,null,null,null,"3 3 5 4 5 6"]
[]
[]
[]
[null,null,null,null,null,null,null,"3 3 5 4 5 7"]
[]
[]
[]
[null,null,null,null,null,null,null,"3 3 5 4 5 8"]
[]
[]
[]
[null,null,null,null,null,null,null,"3 3 5 4 6 6"]
[]
[]
[]
[null,null,null,null,null,null,null,"3 3 5 4 6 7"]
[]
[]
[]
[null,null,null,null,null,null,null,"3 3 5 4 6 8"]
[]
[]
[]
[null,null,null,null,null,null,null,"3 3 5 4 7 6"]
[]
[]
[]
[null,null,null,null,null,null,null,"3 3 5 4 7 7"]
[]
[]
[]
[null,null,null,null,null,null,null,"3 3 5 4 7 8"]
[]
[]
[]
[null,null,null,null,null,null,null,"3 3 5 5 5 6"]
[]
[]
[]
[null,null,null,null,null,null,null,"3 3 5 5 5 7"]
[]
[]
[]
[null,null,null,null,null,null,null,"3 3 5 5 5 8"]
[]
[]
[]
[null,null,null,null,null,null,null,"3 3 5 5 6 6"]
[]
[]
[]
[null,null,null,null,null,null,null,"3 3 5 5 6 7"]
[]
[]
[]
[null,null,null,null,null,null,null,"3 3 5 5 6 8"]
[]
[]
[]
[null,null,null,null,null,null,null,"3 3 5 5 7 6"]
[]
[]
[]
[null,null,null,null,null,null,null,"3 3 5 5 7 7"]
[]
[]
[]
[null,null,null,null,null,null,null,"3 3 5 5 7 8"]
[]
[]
[]
[null,null,null,null,null,null,null,"3 3 5 6 5 6"]
[]
[]
[]
[null,null,null,null,null,null,null,"3 3 5 6 5 7"]
[]
[]
[]
[null,null,null,null,null,null,null,"3 3 5 6 5 8"]
[]
[]
[]
[null,null,null,null,null,null,null,"3 3 5 6 6 6"]
[]
[]
[]
[null,null,null,null,null,null,null,"3 3 5 6 6 7"]
[]
[]
[]
[null,null,null,null,null,null,null,"3 3 5 6 6 8"]
[]
[]
[]
[null,null,null,null,null,null,null,"3 3 5 6 7 6"]
[]
[]
[]
[null,null,null,null,null,null,null,"3 3 5 6 7 7"]
[]
[]
[]
[null,null,null,null,null,null,null,"3 3 5 6 7 8"]
[]
[]
[]
[null,null,null,null,null,null,null,"3 4 3 4 5 6"]
[]
[]
[]
[null,null,null,null,null,null,null,"3 4 3 4 5 7"]
[]
[]
[]
[null,null,null,null,null,null,null,"3 4 3 4 5 8"]
[]
[]
[]
[null,null,null,null,null,null,null,"3 4 3 4 6 6"]
[]
[]
[]
[null,null,null,null,null,null,null,"3 4 3 4 6 7"]
[]
[]
[]
[null,null,null,null,null,null,null,"3 4 3 4 6 8"]
[]
[]
[]
[null,null,null,null,null,null,null,"3 4 3 4 7 6"]
[]
[]
[]
[null,null,null,null,null,null,null,"3 4 3 4 7 7"]
[]
[]
[]
[null,null,null,null,null,null,null,"3 4 3 4 7 8"]
[]
[]
[]
[null,null,null,null,null,null,null,"3 4 3 5 5 6"]
[]
[]
[]
[null,null,null,null,null,null,null,"3 4 3 5 5 7"]
[]
[]
[]
[null,null,null,null,null,null,null,"3 4 3 5 5 8"]
[]
[]
[]
[null,null,null,null,null,null,null,"3 4 3 5 6 6"]
[]
[]
[]
[null,null,null,null,null,null,null,"3 4 3 5 6 7"]
[]
[]
[]
[null,null,null,null,null,null,null,"3 4 3 5 6 8"]
[]
[]
[]
[null,null,null,null,null,null,null,"3 4 3 5 7 6"]
[]
[]
[]
[null,null,null,null,null,null,null,"3 4 3 5 7 7"]
[]
[]
[]
[null,null,null,null,null,null,null,"3 4 3 5 7 8"]
[]
[]
[]
[null,null,null,null,null,null,null,"3 4 3 6 5 6"]
[]
[]
[]
[null,null,null,null,null,null,null,"3 4 3 6 5 7"]
[]
[]
[]
[null,null,null,null,null,null,null,"3 4 3 6 5 8"]
[]
[]
[]
[null,null,null,null,null,null,null,"3 4 3 6 6 6"]
[]
[]
[]
[null,null,null,null,null,null,null,"3 4 3 6 6 7"]
[]
[]
[]
[null,null,null,null,null,null,null,"3 4 3 6 6 8"]
[]
[]
[]
[null,null,null,null,null,null,null,"3 4 3 6 7 6"]
[]
[]
[]
[null,null,null,null,null,null,null,"3 4 3 6 7 7"]
[]
[]
[]
[null,null,null,null,null,null,null,"3 4 3 6 7 8"]
[]
[]
[]
[null,null,null,null,null,null,null,"3 4 4 4 5 6"]
[]
[]
[]
[null,null,null,null,null,null,null,"3 4 4 4 5 7"]
[]
[]
[]
[null,null,null,null,null,null,null,"3 4 4 4 5 8"]
[]
[]
[]
[null,null,null,null,null,null,null,"3 4 4 4 6 6"]
[]
[]
[]
[null,null,null,null,null,null,null,"3 4 4 4 6 7"]
[]
[]
[]
[null,null,null,null,null,null,null,"3 4 4 4 6 8"]
[]
[]
[]
[null,null,null,null,null,null,null,"3 4 4 4 7 6"]
[]
[]
[]
[null,null,null,null,null,null,null,"3 4 4 4 7 7"]
[]
[]
[]
[null,null,null,null,null,null,null,"3 4 4 4 7 8"]
[]
[]
[]
[null,null,null,null,null,null,null,"3 4 4 5 5 6"]
[]
[]
[]
[null,null,null,null,null,null,null,"3 4 4 5 5 7"]
[]
[]
[]
[null,null,null,null,null,null,null,"3 4 4 5 5 8"]
[]
[]
[]
[null,null,null,null,null,null,null,"3 4 4 5 6 6"]
[]
[]
[]
[null,null,null,null,null,null,null,"3 4 4 5 6 7"]
[]
[]
[]
[null,null,null,null,null,null,null,"3 4 4 5 6 8"]
[]
[]
[]
[null,null,null,null,null,null,null,"3 4 4 5 7 6"]
[]
[]
[]
[null,null,null,null,null,null,null,"3 4 4 5 7 7"]
[]
[]
[]
[null,null,null,null,null,null,null,"3 4 4 5 7 8"]
[]
[]
[]
[null,null,null,null,null,null,null,"3 4 4 6 5 6"]
[]
[]
[]
[null,null,null,null,null,null,null,"3 4 4 6 5 7"]
[]
[]
[]
[null,null,null,null,null,null,null,"3 4 4 6 5 8"]
[]
[]
[]
[null,null,null,null,null,null,null,"3 4 4 6 6 6"]
[]
[]
[]
[null,null,null,null,null,null,null,"3 4 4 6 6 7"]
[]
[]
[]
[null,null,null,null,null,null,null,"3 4 4 6 6 8"]
[]
[]
[]
[null,null,null,null,null,null,null,"3 4 4 6 7 6"]
[]
[]
[]
[null,null,null,null,null,null,null,"3 4 4 6 7 7"]
[]
[]
[]
[null,null,null,null,null,null,null,"3 4 4 6 7 8"]
[]
[]
[]
[null,null,null,null,null,null,null,"3 4 5 4 5 6"]
[]
[]
[]
[null,null,null,null,null,null,null,"3 4 5 4 5 7"]
[]
[]
[]
[null,null,null,null,null,null,null,"3 4 5 4 5 8"]
[]
[]
[]
[null,null,null,null,null,null,null,"3 4 5 4 6 6"]
[]
[]
[]
[null,null,null,null,null,null,null,"3 4 5 4 6 7"]
[]
[]
[]
[null,null,null,null,null,null,null,"3 4 5 4 6 8"]
[]
[]
[]
[null,null,null,null,null,null,null,"3 4 5 4 7 6"]
[]
[]
[]
[null,null,null,null,null,null,null,"3 4 5 4 7 7"]
[]
[]
[]
[null,null,null,null,null,null,null,"3 4 5 4 7 8"]
[]
[]
[]
[null,null,null,null,null,null,null,"3 4 5 5 5 6"]
[]
[]
[]
[null,null,null,null,null,null,null,"3 4 5 5 5 7"]
[]
[]
[]
[null,null,null,null,null,null,null,"3 4 5 5 5 8"]
[]
[]
[]
[null,null,null,null,null,null,null,"3 4 5 5 6 6"]
[]
[]
[]
[null,null,null,null,null,null,null,"3 4 5 5 6 7"]
[]
[]
[]
[null,null,null,null,null,null,null,"3 4 5 5 6 8"]
[]
[]
[]
[null,null,null,null,null,null,null,"3 4 5 5 7 6"]
[]
[]
[]
[null,null,null,null,null,null,null,"3 4 5 5 7 7"]
[]
[]
[]
[null,null,null,null,null,null,null,"3 4 5 5 7 8"]
[]
[]
[]
[null,null,null,null,null,null,null,"3 4 5 6 5 6"]
[]
[]
[]
[null,null,null,null,null,null,null,"3 4 5 6 5 7"]
[]
[]
[]
[null,null,null,null,null,null,null,"3 4 5 6 5 8"]
[]
[]
[]
[null,null,null,null,null,null,null,"3 4 5 6 6 6"]
[]
[]
[]
[null,null,null,null,null,null,null,"3 4 5 6 6 7"]
[]
[]
[]
[null,null,null,null,null,null,null,"3 4 5 6 6 8"]
[]
[]
[]
[null,null,null,null,null,null,null,"3 4 5 6 7 6"]
[]
[]
[]
[null,null,null,null,null,null,null,"3 4 5 6 7 7"]
[]
[]
[]
[null,null,null,null,null,null,null,"3 4 5 6 7 8"]

{"sheet":"Power Query","index":2,"n_rows":17,"n_cols":17,"rows_kept":17,"cut":false,"hidden":false,"merged":[[1,1,1,6],[1,11,1,16]]}
[]
[null,"Employing Power Query",null,null,null,null,null,null,null,null,null,"Practice Section"]
[]
[null,"Column 1","Column 2","Column 3","Column 4","Column 5","Column 6",null,null,null,null,"Column 1","Column 2","Column 3","Column 4","Column 5","Column 6"]
[null,1,2,3,4,5,6,null,null,null,null,1,2,3,4,5,6]
[null,2,3,4,5,6,7,null,null,null,null,2,3,4,5,6,7]
[null,3,4,5,6,7,8,null,null,null,null,3,4,5,6,7,8]
[]
[]
[]
[]
[]
[]
[]
[]
[]
[null,null,null,null,null,null,null,null,null,null,null,null,null,null," "]

{"sheet":"Merge1","index":3,"n_rows":10,"n_cols":13,"rows_kept":10,"cut":false,"hidden":false,"merged":[]}
["Column 1","Column 2","Column 3","Column 4","Column 5","Column 6","Temp","Column 1.1","Column 2.1","Column 3.1","Column 4.1","Column 5.1","Column 6.1"]
[1,2,3,4,5,6,1,1,2,3,4,5,6]
[1,2,3,4,5,6,1,2,3,4,5,6,7]
[1,2,3,4,5,6,1,3,4,5,6,7,8]
[2,3,4,5,6,7,1,1,2,3,4,5,6]
[2,3,4,5,6,7,1,2,3,4,5,6,7]
[2,3,4,5,6,7,1,3,4,5,6,7,8]
[3,4,5,6,7,8,1,1,2,3,4,5,6]
[3,4,5,6,7,8,1,2,3,4,5,6,7]
[3,4,5,6,7,8,1,3,4,5,6,7,8]

{"sheet":"Formula","index":4,"n_rows":31,"n_cols":18,"rows_kept":31,"cut":false,"hidden":false,"merged":[[1,1,1,4],[1,11,1,14]]}
[]
[null,"Combinations of 3 Columns Using Formula",null,null,null,null,null,null,null,null,null,"Practice Section"]
[]
[null,"Column 1","Column 2","Column 3","Combinations",null,null,null,null,null,null,"Column 1","Column 2","Column 3","Combinations"]
[null,1,2,3,{"$f":"IFERROR(INDEX($B$5:$B$7,INT((ROW(1:1)-1)/((COUNTA($C$5:$C$7)*(COUNTA($D$5:$D$7)))))+1)&\"-\"&INDEX($C$5:$C$7,MOD(INT((ROW(1:1)-1)/COUNTA($D$5:$D$7)),COUNTA($C$5:$C$7))+1)&\"-\"&INDEX($D$5:$D$7,MOD((ROW(1:1)-1),COUNTA($D$5:$D$7))+1),\"\")","v":"1-2-3"},null,null,null,null,null,null,1,2,3]
[null,2,3,4,{"$f":"IFERROR(INDEX($B$5:$B$7,INT((ROW(2:2)-1)/((COUNTA($C$5:$C$7)*(COUNTA($D$5:$D$7)))))+1)&\"-\"&INDEX($C$5:$C$7,MOD(INT((ROW(2:2)-1)/COUNTA($D$5:$D$7)),COUNTA($C$5:$C$7))+1)&\"-\"&INDEX($D$5:$D$7,MOD((ROW(2:2)-1),COUNTA($D$5:$D$7))+1),\"\")","v":"1-2-4"},null,null,null,null,null,null,2,3,4]
[null,3,4,5,{"$f":"IFERROR(INDEX($B$5:$B$7,INT((ROW(3:3)-1)/((COUNTA($C$5:$C$7)*(COUNTA($D$5:$D$7)))))+1)&\"-\"&INDEX($C$5:$C$7,MOD(INT((ROW(3:3)-1)/COUNTA($D$5:$D$7)),COUNTA($C$5:$C$7))+1)&\"-\"&INDEX($D$5:$D$7,MOD((ROW(3:3)-1),COUNTA($D$5:$D$7))+1),\"\")","v":"1-2-5"},null,null,null,null,null,null,3,4,5]
[null,null,null,null,{"$f":"IFERROR(INDEX($B$5:$B$7,INT((ROW(4:4)-1)/((COUNTA($C$5:$C$7)*(COUNTA($D$5:$D$7)))))+1)&\"-\"&INDEX($C$5:$C$7,MOD(INT((ROW(4:4)-1)/COUNTA($D$5:$D$7)),COUNTA($C$5:$C$7))+1)&\"-\"&INDEX($D$5:$D$7,MOD((ROW(4:4)-1),COUNTA($D$5:$D$7))+1),\"\")","v":"1-3-3"}]
[null,null,null,null,{"$f":"IFERROR(INDEX($B$5:$B$7,INT((ROW(5:5)-1)/((COUNTA($C$5:$C$7)*(COUNTA($D$5:$D$7)))))+1)&\"-\"&INDEX($C$5:$C$7,MOD(INT((ROW(5:5)-1)/COUNTA($D$5:$D$7)),COUNTA($C$5:$C$7))+1)&\"-\"&INDEX($D$5:$D$7,MOD((ROW(5:5)-1),COUNTA($D$5:$D$7))+1),\"\")","v":"1-3-4"}]
[null,null,null,null,{"$f":"IFERROR(INDEX($B$5:$B$7,INT((ROW(6:6)-1)/((COUNTA($C$5:$C$7)*(COUNTA($D$5:$D$7)))))+1)&\"-\"&INDEX($C$5:$C$7,MOD(INT((ROW(6:6)-1)/COUNTA($D$5:$D$7)),COUNTA($C$5:$C$7))+1)&\"-\"&INDEX($D$5:$D$7,MOD((ROW(6:6)-1),COUNTA($D$5:$D$7))+1),\"\")","v":"1-3-5"}]
[null,null,null,null,{"$f":"IFERROR(INDEX($B$5:$B$7,INT((ROW(7:7)-1)/((COUNTA($C$5:$C$7)*(COUNTA($D$5:$D$7)))))+1)&\"-\"&INDEX($C$5:$C$7,MOD(INT((ROW(7:7)-1)/COUNTA($D$5:$D$7)),COUNTA($C$5:$C$7))+1)&\"-\"&INDEX($D$5:$D$7,MOD((ROW(7:7)-1),COUNTA($D$5:$D$7))+1),\"\")","v":"1-4-3"}]
[null,null,null,null,{"$f":"IFERROR(INDEX($B$5:$B$7,INT((ROW(8:8)-1)/((COUNTA($C$5:$C$7)*(COUNTA($D$5:$D$7)))))+1)&\"-\"&INDEX($C$5:$C$7,MOD(INT((ROW(8:8)-1)/COUNTA($D$5:$D$7)),COUNTA($C$5:$C$7))+1)&\"-\"&INDEX($D$5:$D$7,MOD((ROW(8:8)-1),COUNTA($D$5:$D$7))+1),\"\")","v":"1-4-4"}]
[null,null,null,null,{"$f":"IFERROR(INDEX($B$5:$B$7,INT((ROW(9:9)-1)/((COUNTA($C$5:$C$7)*(COUNTA($D$5:$D$7)))))+1)&\"-\"&INDEX($C$5:$C$7,MOD(INT((ROW(9:9)-1)/COUNTA($D$5:$D$7)),COUNTA($C$5:$C$7))+1)&\"-\"&INDEX($D$5:$D$7,MOD((ROW(9:9)-1),COUNTA($D$5:$D$7))+1),\"\")","v":"1-4-5"}]
[null,null,null,null,{"$f":"IFERROR(INDEX($B$5:$B$7,INT((ROW(10:10)-1)/((COUNTA($C$5:$C$7)*(COUNTA($D$5:$D$7)))))+1)&\"-\"&INDEX($C$5:$C$7,MOD(INT((ROW(10:10)-1)/COUNTA($D$5:$D$7)),COUNTA($C$5:$C$7))+1)&\"-\"&INDEX($D$5:$D$7,MOD((ROW(10:10)-1),COUNTA($D$5:$D$7))+1),\"\")","v":"2-2-3"}]
[null,null,null,null,{"$f":"IFERROR(INDEX($B$5:$B$7,INT((ROW(11:11)-1)/((COUNTA($C$5:$C$7)*(COUNTA($D$5:$D$7)))))+1)&\"-\"&INDEX($C$5:$C$7,MOD(INT((ROW(11:11)-1)/COUNTA($D$5:$D$7)),COUNTA($C$5:$C$7))+1)&\"-\"&INDEX($D$5:$D$7,MOD((ROW(11:11)-1),COUNTA($D$5:$D$7))+1),\"\")","v":"2-2-4"}]
[null,null,null,null,{"$f":"IFERROR(INDEX($B$5:$B$7,INT((ROW(12:12)-1)/((COUNTA($C$5:$C$7)*(COUNTA($D$5:$D$7)))))+1)&\"-\"&INDEX($C$5:$C$7,MOD(INT((ROW(12:12)-1)/COUNTA($D$5:$D$7)),COUNTA($C$5:$C$7))+1)&\"-\"&INDEX($D$5:$D$7,MOD((ROW(12:12)-1),COUNTA($D$5:$D$7))+1),\"\")","v":"2-2-5"}]
[null,null,null,null,{"$f":"IFERROR(INDEX($B$5:$B$7,INT((ROW(13:13)-1)/((COUNTA($C$5:$C$7)*(COUNTA($D$5:$D$7)))))+1)&\"-\"&INDEX($C$5:$C$7,MOD(INT((ROW(13:13)-1)/COUNTA($D$5:$D$7)),COUNTA($C$5:$C$7))+1)&\"-\"&INDEX($D$5:$D$7,MOD((ROW(13:13)-1),COUNTA($D$5:$D$7))+1),\"\")","v":"2-3-3"}]
[null,null,null,null,{"$f":"IFERROR(INDEX($B$5:$B$7,INT((ROW(14:14)-1)/((COUNTA($C$5:$C$7)*(COUNTA($D$5:$D$7)))))+1)&\"-\"&INDEX($C$5:$C$7,MOD(INT((ROW(14:14)-1)/COUNTA($D$5:$D$7)),COUNTA($C$5:$C$7))+1)&\"-\"&INDEX($D$5:$D$7,MOD((ROW(14:14)-1),COUNTA($D$5:$D$7))+1),\"\")","v":"2-3-4"}]
[null,null,null,null,{"$f":"IFERROR(INDEX($B$5:$B$7,INT((ROW(15:15)-1)/((COUNTA($C$5:$C$7)*(COUNTA($D$5:$D$7)))))+1)&\"-\"&INDEX($C$5:$C$7,MOD(INT((ROW(15:15)-1)/COUNTA($D$5:$D$7)),COUNTA($C$5:$C$7))+1)&\"-\"&INDEX($D$5:$D$7,MOD((ROW(15:15)-1),COUNTA($D$5:$D$7))+1),\"\")","v":"2-3-5"}]
[null,null,null,null,{"$f":"IFERROR(INDEX($B$5:$B$7,INT((ROW(16:16)-1)/((COUNTA($C$5:$C$7)*(COUNTA($D$5:$D$7)))))+1)&\"-\"&INDEX($C$5:$C$7,MOD(INT((ROW(16:16)-1)/COUNTA($D$5:$D$7)),COUNTA($C$5:$C$7))+1)&\"-\"&INDEX($D$5:$D$7,MOD((ROW(16:16)-1),COUNTA($D$5:$D$7))+1),\"\")","v":"2-4-3"}]
[null,null,null,null,{"$f":"IFERROR(INDEX($B$5:$B$7,INT((ROW(17:17)-1)/((COUNTA($C$5:$C$7)*(COUNTA($D$5:$D$7)))))+1)&\"-\"&INDEX($C$5:$C$7,MOD(INT((ROW(17:17)-1)/COUNTA($D$5:$D$7)),COUNTA($C$5:$C$7))+1)&\"-\"&INDEX($D$5:$D$7,MOD((ROW(17:17)-1),COUNTA($D$5:$D$7))+1),\"\")","v":"2-4-4"},null,null,null,null,null,null,null,null,null,null,null,null," "]
[null,null,null,null,{"$f":"IFERROR(INDEX($B$5:$B$7,INT((ROW(18:18)-1)/((COUNTA($C$5:$C$7)*(COUNTA($D$5:$D$7)))))+1)&\"-\"&INDEX($C$5:$C$7,MOD(INT((ROW(18:18)-1)/COUNTA($D$5:$D$7)),COUNTA($C$5:$C$7))+1)&\"-\"&INDEX($D$5:$D$7,MOD((ROW(18:18)-1),COUNTA($D$5:$D$7))+1),\"\")","v":"2-4-5"}]
[null,null,null,null,{"$f":"IFERROR(INDEX($B$5:$B$7,INT((ROW(19:19)-1)/((COUNTA($C$5:$C$7)*(COUNTA($D$5:$D$7)))))+1)&\"-\"&INDEX($C$5:$C$7,MOD(INT((ROW(19:19)-1)/COUNTA($D$5:$D$7)),COUNTA($C$5:$C$7))+1)&\"-\"&INDEX($D$5:$D$7,MOD((ROW(19:19)-1),COUNTA($D$5:$D$7))+1),\"\")","v":"3-2-3"}]
[null,null,null,null,{"$f":"IFERROR(INDEX($B$5:$B$7,INT((ROW(20:20)-1)/((COUNTA($C$5:$C$7)*(COUNTA($D$5:$D$7)))))+1)&\"-\"&INDEX($C$5:$C$7,MOD(INT((ROW(20:20)-1)/COUNTA($D$5:$D$7)),COUNTA($C$5:$C$7))+1)&\"-\"&INDEX($D$5:$D$7,MOD((ROW(20:20)-1),COUNTA($D$5:$D$7))+1),\"\")","v":"3-2-4"}]
[null,null,null,null,{"$f":"IFERROR(INDEX($B$5:$B$7,INT((ROW(21:21)-1)/((COUNTA($C$5:$C$7)*(COUNTA($D$5:$D$7)))))+1)&\"-\"&INDEX($C$5:$C$7,MOD(INT((ROW(21:21)-1)/COUNTA($D$5:$D$7)),COUNTA($C$5:$C$7))+1)&\"-\"&INDEX($D$5:$D$7,MOD((ROW(21:21)-1),COUNTA($D$5:$D$7))+1),\"\")","v":"3-2-5"}]
[null,null,null,null,{"$f":"IFERROR(INDEX($B$5:$B$7,INT((ROW(22:22)-1)/((COUNTA($C$5:$C$7)*(COUNTA($D$5:$D$7)))))+1)&\"-\"&INDEX($C$5:$C$7,MOD(INT((ROW(22:22)-1)/COUNTA($D$5:$D$7)),COUNTA($C$5:$C$7))+1)&\"-\"&INDEX($D$5:$D$7,MOD((ROW(22:22)-1),COUNTA($D$5:$D$7))+1),\"\")","v":"3-3-3"}]
[null,null,null,null,{"$f":"IFERROR(INDEX($B$5:$B$7,INT((ROW(23:23)-1)/((COUNTA($C$5:$C$7)*(COUNTA($D$5:$D$7)))))+1)&\"-\"&INDEX($C$5:$C$7,MOD(INT((ROW(23:23)-1)/COUNTA($D$5:$D$7)),COUNTA($C$5:$C$7))+1)&\"-\"&INDEX($D$5:$D$7,MOD((ROW(23:23)-1),COUNTA($D$5:$D$7))+1),\"\")","v":"3-3-4"}]
[null,null,null,null,{"$f":"IFERROR(INDEX($B$5:$B$7,INT((ROW(24:24)-1)/((COUNTA($C$5:$C$7)*(COUNTA($D$5:$D$7)))))+1)&\"-\"&INDEX($C$5:$C$7,MOD(INT((ROW(24:24)-1)/COUNTA($D$5:$D$7)),COUNTA($C$5:$C$7))+1)&\"-\"&INDEX($D$5:$D$7,MOD((ROW(24:24)-1),COUNTA($D$5:$D$7))+1),\"\")","v":"3-3-5"}]
[null,null,null,null,{"$f":"IFERROR(INDEX($B$5:$B$7,INT((ROW(25:25)-1)/((COUNTA($C$5:$C$7)*(COUNTA($D$5:$D$7)))))+1)&\"-\"&INDEX($C$5:$C$7,MOD(INT((ROW(25:25)-1)/COUNTA($D$5:$D$7)),COUNTA($C$5:$C$7))+1)&\"-\"&INDEX($D$5:$D$7,MOD((ROW(25:25)-1),COUNTA($D$5:$D$7))+1),\"\")","v":"3-4-3"}]
[null,null,null,null,{"$f":"IFERROR(INDEX($B$5:$B$7,INT((ROW(26:26)-1)/((COUNTA($C$5:$C$7)*(COUNTA($D$5:$D$7)))))+1)&\"-\"&INDEX($C$5:$C$7,MOD(INT((ROW(26:26)-1)/COUNTA($D$5:$D$7)),COUNTA($C$5:$C$7))+1)&\"-\"&INDEX($D$5:$D$7,MOD((ROW(26:26)-1),COUNTA($D$5:$D$7))+1),\"\")","v":"3-4-4"}]
[null,null,null,null,{"$f":"IFERROR(INDEX($B$5:$B$7,INT((ROW(27:27)-1)/((COUNTA($C$5:$C$7)*(COUNTA($D$5:$D$7)))))+1)&\"-\"&INDEX($C$5:$C$7,MOD(INT((ROW(27:27)-1)/COUNTA($D$5:$D$7)),COUNTA($C$5:$C$7))+1)&\"-\"&INDEX($D$5:$D$7,MOD((ROW(27:27)-1),COUNTA($D$5:$D$7))+1),\"\")","v":"3-4-5"}]